Workbook

Sheet Accueil
A2: Grand-livre automatique
C3: ="Activer une case de la marge gauche du GL pour les réglages" & IF('Grand-livre'!D120=1," (ou Ctrl + r)."," (ou Alt pomme + r).") -> Activer une case de la marge gauche du GL pour les réglages (ou Ctrl + r). | G3: feuille suivante
B5: Ce qu'il fait : | C5: - Montre les opérations écriture par écriture
C6: - Montre des opérations groupées
C7: - Montre ou cache les soldes pour balance
C8: - Montre ou cache le compte de résultat et le Bilan
C9: - Tire au sort des questions pour s'entraîner
B11: Utile pour : | C11: - Corriger des exercices progressivement et de façon dynamique
C12: - Corriger des tests d'élèves en entrant les erreurs commises
C13: - Morceler un exercice en plusieurs parties
C14: - Faire des démonstrations
C15: - Faire des simulations
C16: - Jouer avec le "blitz" (tirer au sort un libellé puis vérifier la réponse)
C17: - Préparer les feuilles de comptes en T vides
C18: - Imprimer des corrigés
C19: - …
D21: Propriétés de ce grand-livre
C23: Nom de l'exercice* : | D23: GL_Calde_ex4_ch14_2011.xls
C24: Source de la donnée : | D24: exercice : | E24: 4 Chapitre 14
D25: manuel : | E25: Calderara
D26: fichier joint :
D27: cd-rom :
C29: Auteur de ce GL : | D29: © Y. Péguiron
C31: Date de création : | D31: Version 07.11.2011 - Compatible Excel Mac 2011
C33: Niveau : | D33: S1
C35: Sujet comptable : | D35: Marchandises simples
C37: Remarques : | D37: Grand-livre simple sur les marchandises, sans les comptes 32 et 42 pour la clôture. Attention, dans la donnée les montants sont en milliers de francs, et les comptes 3290, 4280 et 4290 manquent !
B41: * Ce nom apparaît un haut à gauche
B42: à l'impression de la feuille du GL
B102: FALSE

Sheet Grand-livre
A1: =IF(B1>0,"PN","") ->  | B1: =$G$89 -> 0.00 | C1: =IF(D1>0,"BN","") ->  | D1: =$E$89 -> 0.00 | AY1: =$G$89 -> 0.00
D2: =IF(B3="","",VLOOKUP(B3,Plancompta,3)) -> + | G2: =IF(B3="","",VLOOKUP(B3,Plancompta,4)) -> - | J2: =IF(H3="","",VLOOKUP(H3,Plancompta,3)) -> + | M2: =IF(H3="","",VLOOKUP(H3,Plancompta,4)) -> - | P2: =IF(N3="","",VLOOKUP(N3,Plancompta,3)) -> + | S2: =IF(N3="","",VLOOKUP(N3,Plancompta,4)) -> - | V2: =IF(T3="","",VLOOKUP(T3,Plancompta,3)) -> - | Y2: =IF(T3="","",VLOOKUP(T3,Plancompta,4)) -> + | AC2: =IF(AA3="","",VLOOKUP(AA3,Plancompta,3)) ->  | AF2: =IF(AA3="","",VLOOKUP(AA3,Plancompta,4)) ->  | AI2: =IF(AG3="","",VLOOKUP(AG3,Plancompta,3)) ->  | AL2: =IF(AG3="","",VLOOKUP(AG3,Plancompta,4)) ->  | AO2: =IF(AM3="","",VLOOKUP(AM3,Plancompta,3)) ->  | AR2: =IF(AM3="","",VLOOKUP(AM3,Plancompta,4)) ->  | AU2: =IF(AS3="","",VLOOKUP(AS3,Plancompta,3)) ->  | AX2: =IF(AS3="","",VLOOKUP(AS3,Plancompta,4)) ->  | BG2: Résultat avec no ou avec nom
B3: 1000 | D3: =IF(B3="","",B3 & " " & VLOOKUP(B3,Plancompta,2)) -> 1000 Caisse | H3: 1100 | J3: =IF(H3="","",H3 & " " & VLOOKUP(H3,Plancompta,2)) -> 1100 Créances clients | N3: 1200 | P3: =IF(N3="","",N3 & " " & VLOOKUP(N3,Plancompta,2)) -> 1200 Stock | T3: 2000 | V3: =IF(T3="","",T3 & " " & VLOOKUP(T3,Plancompta,2)) -> 2000 Fournisseurs | AC3: =IF(AA3="","",AA3 & " " & VLOOKUP(AA3,Plancompta,2)) ->  | AI3: =IF(AG3="","",AG3 & " " & VLOOKUP(AG3,Plancompta,2)) ->  | AO3: =IF(AM3="","",AM3 & " " & VLOOKUP(AM3,Plancompta,2)) ->  | AU3: =IF(AS3="","",AS3 & " " & VLOOKUP(AS3,Plancompta,2)) ->  | BG3: =IF(D107=TRUE,5,0) -> 5 | BH3: TRUE | BI3: =IF(BH3=TRUE,6,4) -> 6 | BJ3: Ligne vide | BK3: FALSE
BD4: table | BJ4: =SUM(E4,G4,K4,M4,Q4,S4,W4,Y4,AD4,AF4,AJ4,AL4,AP4,AR4,AV4,AX4) -> 0.00
BB5: B11/22 | BC5: =IF(INT(BD5/2)=BD5/2,1,2) -> 2 | BD5: =B11 -> 41 | BE5: =IF(BC5=2,BH5*-1,BH5) -> 0.00 | BF5: =D3 -> 1000 Caisse | BG5: =LEFT(BF5,4) -> 1000 | BH5: =C11 -> 0.00 | BI5: =LEFT(RIGHT(BF5,LEN(BF5)-$BG$3),4) -> Cais | BJ5: =SUM(E5,G5,K5,M5,Q5,S5,W5,Y5,AD5,AF5,AJ5,AL5,AP5,AR5,AV5,AX5) -> 0.00
BB6: H11 | BC6: 2 | BD6: =H11 -> 43 | BE6: 0.00 | BF6: =J3 -> 1100 Créances clients | BG6: =LEFT(BF6,4) -> 1100 | BH6: =I11 -> 0.00 | BI6: =LEFT(RIGHT(BF6,LEN(BF6)-$BG$3),4) -> Créa | BJ6: 0.00
BB7: N11 | BC7: 2 | BD7: =N11 -> 45 | BE7: 0.00 | BF7: =P3 -> 1200 Stock | BG7: 1200 | BH7: =O11 -> 0.00 | BI7: Stoc | BJ7: 0.00 | BK7: =IF(BJ7=0,1,0) -> 1
BB8: T11 | BC8: 1 | BD8: =T11 -> 42 | BE8: 0.00 | BF8: =V3 -> 2000 Fournisseurs | BG8: 2000 | BH8: =U11 -> 0.00 | BI8: Four | BJ8: 0.00 | BK8: =IF(BJ8=0,1,0) -> 1
BB9: B22 | BC9: 1 | BD9: =B22 -> 44 | BE9: 0.00 | BF9: =D14 -> 2100 Dettes bancaires | BG9: 2100 | BH9: =C22 -> 0.00 | BI9: Dett | BJ9: 0.00 | BK9: =IF(BJ9=0,1,0) -> 1
BB10: H22 | BC10: 1 | BD10: =H22 -> 46 | BE10: 0.00 | BF10: =J14 -> 2800 Capital | BG10: 2800 | BH10: =I22 -> 0.00 | BI10: Capi | BJ10: 0.00 | BK10: =IF(BJ10=0,1,0) -> 1
B11: 41 | C11: =E11-G11 -> 0.00 | D11: =IF(E11=0,"",C12) ->  | E11: =IF(E4+G4=0,0,IF(SUM(E4:E10)>SUM(G4:G10),0,SUM(G4:G10)-SUM(E4:E10))) -> 0.00 | F11: =IF(G11=0,"",C12) ->  | G11: =IF(E4+G4=0,0,IF(SUM(G4:G10)>SUM(E4:E10),0,SUM(E4:E10)-SUM(G4:G10))) -> 0.00 | H11: 43 | I11: =K11-M11 -> 0.00 | J11: =IF(K11=0,"",I12) ->  | K11: =IF(K4+M4=0,0,IF(SUM(K4:K10)>SUM(M4:M10),0,SUM(M4:M10)-SUM(K4:K10))) -> 0.00 | L11: =IF(M11=0,"",I12) ->  | M11: =IF(K4+M4=0,0,IF(SUM(M4:M10)>SUM(K4:K10),0,SUM(K4:K10)-SUM(M4:M10))) -> 0.00 | N11: 45 | O11: =Q11-S11 -> 0.00 | P11: =IF(Q11=0,"",O12) ->  | Q11: =IF(Q4+S4=0,0,IF(SUM(Q4:Q10)>SUM(S4:S10),0,SUM(S4:S10)-SUM(Q4:Q10))) -> 0.00 | R11: =IF(S11=0,"",O12) ->  | S11: =IF(Q4+S4=0,0,IF(SUM(S4:S10)>SUM(Q4:Q10),0,SUM(Q4:Q10)-SUM(S4:S10))) -> 0.00 | T11: 42 | U11: =W11-Y11 -> 0.00 | V11: =IF(W11=0,"",U12) ->  | W11: =IF(W4+Y4=0,0,IF(SUM(W4:W10)>SUM(Y4:Y10),0,SUM(Y4:Y10)-SUM(W4:W10))) -> 0.00 | X11: =IF(Y11=0,"",U12) ->  | Y11: =IF(W4+Y4=0,0,IF(SUM(Y4:Y10)>SUM(W4:W10),0,SUM(W4:W10)-SUM(Y4:Y10))) -> 0.00 | AB11: =AD11-AF11 -> 0.00 | AC11: =IF(AD11=0,"",AB12) ->  | AD11: =IF(AD4+AF4=0,0,IF(SUM(AD4:AD10)>SUM(AF4:AF10),0,SUM(AF4:AF10)-SUM(AD4:AD10))) -> 0.00 | AE11: =IF(AF11=0,"",AB12) ->  | AF11: =IF(AD4+AF4=0,0,IF(SUM(AF4:AF10)>SUM(AD4:AD10),0,SUM(AD4:AD10)-SUM(AF4:AF10))) -> 0.00 | AH11: =AJ11-AL11 -> 0.00 | AI11: =IF(AJ11=0,"",AH12) ->  | AJ11: =IF(AJ4+AL4=0,0,IF(SUM(AJ4:AJ10)>SUM(AL4:AL10),0,SUM(AL4:AL10)-SUM(AJ4:AJ10))) -> 0.00 | AK11: =IF(AL11=0,"",AH12) ->  | AL11: =IF(AJ4+AL4=0,0,IF(SUM(AL4:AL10)>SUM(AJ4:AJ10),0,SUM(AJ4:AJ10)-SUM(AL4:AL10))) -> 0.00 | AN11: =AP11-AR11 -> 0.00 | AO11: =IF(AP11=0,"",AN12) ->  | AP11: =IF(AP4+AR4=0,0,IF(SUM(AP4:AP10)>SUM(AR4:AR10),0,SUM(AR4:AR10)-SUM(AP4:AP10))) -> 0.00 | AQ11: =IF(AR11=0,"",AN12) ->  | AR11: =IF(AP4+AR4=0,0,IF(SUM(AR4:AR10)>SUM(AP4:AP10),0,SUM(AP4:AP10)-SUM(AR4:AR10))) -> 0.00 | AT11: =AV11-AX11 -> 0.00 | AU11: =IF(AV11=0,"",AT12) ->  | AV11: =IF(AV4+AX4=0,0,IF(SUM(AV4:AV10)>SUM(AX4:AX10),0,SUM(AX4:AX10)-SUM(AV4:AV10))) -> 0.00 | AW11: =IF(AX11=0,"",AT12) ->  | AX11: =IF(AV4+AX4=0,0,IF(SUM(AX4:AX10)>SUM(AV4:AV10),0,SUM(AV4:AV10)-SUM(AX4:AX10))) -> 0.00 | BB11: N22 | BC11: 1 | BD11: =N22 -> 2 | BE11: 0.00 | BF11: =P14 -> 3200 Ventes | BG11: 3200 | BH11: =O22 -> 0.00 | BI11: Vent | BJ11: 0.00
C12: =IF(B11="","spb",IF(B11>40,$E$110,$E$111)) -> v/Bi | E12: =IF(E4+G4=0,"",SUM(E4:E11)) ->  | G12: =IF(E4+G4=0,"",SUM(G4:G11)) ->  | I12: =IF(H11="","spb",IF(H11>40,$E$110,$E$111)) -> v/Bi | K12: =IF(K4+M4=0,"",SUM(K4:K11)) ->  | M12: =IF(K4+M4=0,"",SUM(M4:M11)) ->  | O12: =IF(N11="","spb",IF(N11>40,$E$110,$E$111)) -> v/Bi | Q12: =IF(Q4+S4=0,"",SUM(Q4:Q11)) ->  | S12: =IF(Q4+S4=0,"",SUM(S4:S11)) ->  | U12: =IF(T11="","spb",IF(T11>40,$E$110,$E$111)) -> v/Bi | W12: =IF(W4+Y4=0,"",SUM(W4:W11)) ->  | Y12: =IF(W4+Y4=0,"",SUM(Y4:Y11)) ->  | AB12: =IF(AA11="","spb",IF(AA11>40,$E$110,$E$111)) -> spb | AD12: =IF(AD4+AF4=0,"",SUM(AD4:AD11)) ->  | AF12: =IF(AD4+AF4=0,"",SUM(AF4:AF11)) ->  | AH12: =IF(AG11="","spb",IF(AG11>40,$E$110,$E$111)) -> spb | AJ12: =IF(AJ4+AL4=0,"",SUM(AJ4:AJ11)) ->  | AL12: =IF(AJ4+AL4=0,"",SUM(AL4:AL11)) ->  | AN12: =IF(AM11="","spb",IF(AM11>40,$E$110,$E$111)) -> spb | AP12: =IF(AP4+AR4=0,"",SUM(AP4:AP11)) ->  | AR12: =IF(AP4+AR4=0,"",SUM(AR4:AR11)) ->  | AT12: =IF(AS11="","spb",IF(AS11>40,$E$110,$E$111)) -> spb | AV12: =IF(AV4+AX4=0,"",SUM(AV4:AV11)) ->  | AX12: =IF(AV4+AX4=0,"",SUM(AX4:AX11)) ->  | BB12: T22 | BC12: 2 | BD12: =T22 -> 1 | BE12: 0.00 | BF12: =V14 -> 3290 Déd. accordées | BG12: 3290 | BH12: =U22 -> 0.00 | BI12: Déd. | BJ12: 0.00
D13: =IF(B14="","",VLOOKUP(B14,Plancompta,3)) -> - | G13: =IF(B14="","",VLOOKUP(B14,Plancompta,4)) -> + | J13: =IF(H14="","",VLOOKUP(H14,Plancompta,3)) -> - | L13: 2 | M13: =IF(H14="","",VLOOKUP(H14,Plancompta,4)) -> + | P13: =IF(N14="","",VLOOKUP(N14,Plancompta,3)) -> - | R13: 3 | S13: =IF(N14="","",VLOOKUP(N14,Plancompta,4)) -> + | V13: =IF(T14="","",VLOOKUP(T14,Plancompta,3)) -> - | X13: 4 | Y13: =IF(T14="","",VLOOKUP(T14,Plancompta,4)) -> + | AC13: =IF(AA14="","",VLOOKUP(AA14,Plancompta,3)) ->  | AE13: 5 | AF13: =IF(AA14="","",VLOOKUP(AA14,Plancompta,4)) ->  | AI13: =IF(AG14="","",VLOOKUP(AG14,Plancompta,3)) ->  | AK13: 6 | AL13: =IF(AG14="","",VLOOKUP(AG14,Plancompta,4)) ->  | AO13: =IF(AM14="","",VLOOKUP(AM14,Plancompta,3)) ->  | AQ13: 7 | AR13: =IF(AM14="","",VLOOKUP(AM14,Plancompta,4)) ->  | AU13: =IF(AS14="","",VLOOKUP(AS14,Plancompta,3)) ->  | AW13: 8 | AX13: =IF(AS14="","",VLOOKUP(AS14,Plancompta,4)) ->  | BB13: B33 | BC13: 2 | BD13: =B33 -> 3 | BE13: 0.00 | BF13: =D25 -> 4200 Achats march. | BG13: 4200 | BH13: =C33 -> 0.00 | BI13: Acha
B14: 2100 | D14: =IF(B14="","",B14 & " " & VLOOKUP(B14,Plancompta,2)) -> 2100 Dettes bancaires | H14: 2800 | J14: =IF(H14="","",H14 & " " & VLOOKUP(H14,Plancompta,2)) -> 2800 Capital | N14: 3200 | P14: =IF(N14="","",N14 & " " & VLOOKUP(N14,Plancompta,2)) -> 3200 Ventes | T14: 3290 | V14: =IF(T14="","",T14 & " " & VLOOKUP(T14,Plancompta,2)) -> 3290 Déd. accordées | AC14: =IF(AA14="","",AA14 & " " & VLOOKUP(AA14,Plancompta,2)) ->  | AI14: =IF(AG14="","",AG14 & " " & VLOOKUP(AG14,Plancompta,2)) ->  | AO14: =IF(AM14="","",AM14 & " " & VLOOKUP(AM14,Plancompta,2)) ->  | AU14: =IF(AS14="","",AS14 & " " & VLOOKUP(AS14,Plancompta,2)) ->  | BB14: H33 | BC14: 1 | BD14: =H33 -> 4 | BE14: 0.00 | BF14: =J25 -> 4280 Variation stock | BG14: 4280 | BH14: =I33 -> 0.00 | BI14: Vari | BJ14: 0.00
BB15: N33 | BC15: 1 | BD15: =N33 -> 6 | BE15: 0.00 | BF15: =P25 -> 4290 Déd. obtenues | BG15: 4290 | BH15: =O33 -> 0.00 | BI15: Déd. | BJ15: 0.00
BB16: T33 | BC16: 2 | BD16: =T33 -> 13 | BE16: 0.00 | BF16: =V25 -> 6700 ACE | BG16: 6700 | BH16: =U33 -> 0.00 | BI16: ACE | BJ16: 0.00 | BK16: =IF(BJ16=0,1,0) -> 1
BB17: B44 | BC17: 1 | BD17: =B44 -> 0 | BE17: 0.00 | BF17: =D36 ->  | BH17: =C44 -> 0.00 | BJ17: 0.00
BB18: H44 | BC18: 1 | BD18: =H44 -> 0 | BE18: 0.00 | BF18: =J36 ->  | BH18: =I44 -> 0.00 | BJ18: 0.00 | BK18: =IF(BJ18=0,1,0) -> 1
BB19: N44 | BC19: 1 | BD19: =N44 -> 0 | BE19: 0.00 | BF19: =P36 ->  | BH19: =O44 -> 0.00 | BJ19: 0.00 | BK19: =IF(BJ19=0,1,0) -> 1
BB20: T44 | BC20: 1 | BD20: =T44 -> 0 | BE20: 0.00 | BF20: =V36 ->  | BH20: =U44 -> 0.00 | BJ20: 0.00 | BK20: =IF(BJ20=0,1,0) -> 1
BD21: B89 | BF21: =D73 -> 9000 Résultat | BG21: 9000 | BH21: =C89 -> 0.00 | BI21: Résu | BJ21: 0.00 | BK21: =IF(BJ21=0,1,0) -> 1
B22: 44 | C22: =E22-G22 -> 0.00 | D22: =IF(E22=0,"",C23) ->  | E22: =IF(E15+G15=0,0,IF(SUM(E15:E21)>SUM(G15:G21),0,SUM(G15:G21)-SUM(E15:E21))) -> 0.00 | F22: =IF(G22=0,"",C23) ->  | G22: =IF(E15+G15=0,0,IF(SUM(G15:G21)>SUM(E15:E21),0,SUM(E15:E21)-SUM(G15:G21))) -> 0.00 | H22: 46 | I22: =K22-M22 -> 0.00 | J22: =IF(K22=0,"",I23) ->  | K22: =IF(K15+M15=0,0,IF(SUM(K15:K21)>SUM(M15:M21),0,SUM(M15:M21)-SUM(K15:K21))) -> 0.00 | L22: =IF(M22=0,"",I23) ->  | M22: =IF(K15+M15=0,0,IF(SUM(M15:M21)>SUM(K15:K21),0,SUM(K15:K21)-SUM(M15:M21))) -> 0.00 | N22: 2 | O22: =Q22-S22 -> 0.00 | P22: =IF(Q22=0,"",O23) ->  | Q22: =IF(Q15+S15=0,0,IF(SUM(Q15:Q21)>SUM(S15:S21),0,SUM(S15:S21)-SUM(Q15:Q21))) -> 0.00 | R22: =IF(S22=0,"",O23) ->  | S22: =IF(Q15+S15=0,0,IF(SUM(S15:S21)>SUM(Q15:Q21),0,SUM(Q15:Q21)-SUM(S15:S21))) -> 0.00 | T22: 1 | U22: =W22-Y22 -> 0.00 | V22: =IF(W22=0,"",U23) ->  | W22: =IF(W15+Y15=0,0,IF(SUM(W15:W21)>SUM(Y15:Y21),0,SUM(Y15:Y21)-SUM(W15:W21))) -> 0.00 | X22: =IF(Y22=0,"",U23) ->  | Y22: =IF(W15+Y15=0,0,IF(SUM(Y15:Y21)>SUM(W15:W21),0,SUM(W15:W21)-SUM(Y15:Y21))) -> 0.00 | AB22: =AD22-AF22 -> 0.00 | AC22: =IF(AD22=0,"",AB23) ->  | AD22: =IF(AD15+AF15=0,0,IF(SUM(AD15:AD21)>SUM(AF15:AF21),0,SUM(AF15:AF21)-SUM(AD15:AD21))) -> 0.00 | AE22: =IF(AF22=0,"",AB23) ->  | AF22: =IF(AD15+AF15=0,0,IF(SUM(AF15:AF21)>SUM(AD15:AD21),0,SUM(AD15:AD21)-SUM(AF15:AF21))) -> 0.00 | AH22: =AJ22-AL22 -> 0.00 | AI22: =IF(AJ22=0,"",AH23) ->  | AJ22: =IF(AJ15+AL15=0,0,IF(SUM(AJ15:AJ21)>SUM(AL15:AL21),0,SUM(AL15:AL21)-SUM(AJ15:AJ21))) -> 0.00 | AK22: =IF(AL22=0,"",AH23) ->  | AL22: =IF(AJ15+AL15=0,0,IF(SUM(AL15:AL21)>SUM(AJ15:AJ21),0,SUM(AJ15:AJ21)-SUM(AL15:AL21))) -> 0.00 | AN22: =AP22-AR22 -> 0.00 | AO22: =IF(AP22=0,"",AN23) ->  | AP22: =IF(AP15+AR15=0,0,IF(SUM(AP15:AP21)>SUM(AR15:AR21),0,SUM(AR15:AR21)-SUM(AP15:AP21))) -> 0.00 | AQ22: =IF(AR22=0,"",AN23) ->  | AR22: =IF(AP15+AR15=0,0,IF(SUM(AR15:AR21)>SUM(AP15:AP21),0,SUM(AP15:AP21)-SUM(AR15:AR21))) -> 0.00 | AT22: =AV22-AX22 -> 0.00 | AU22: =IF(AV22=0,"",AT23) ->  | AV22: =IF(AV15+AX15=0,0,IF(SUM(AV15:AV21)>SUM(AX15:AX21),0,SUM(AX15:AX21)-SUM(AV15:AV21))) -> 0.00 | AW22: =IF(AX22=0,"",AT23) ->  | AX22: =IF(AV15+AX15=0,0,IF(SUM(AX15:AX21)>SUM(AV15:AV21),0,SUM(AV15:AV21)-SUM(AX15:AX21))) -> 0.00 | BB22: AA11 | BC22: 1 | BD22: =AA11 -> 0 | BE22: 0.00 | BF22: =AC3 ->  | BH22: =AB11 -> 0.00 | BJ22: =SUM(E22,G22,#REF!,M22,Q22,S22,W22,Y22,AD22,AF22,AJ22,AL22,AP22,AR22,AV22,AX22) -> 
C23: =IF(B22="","spb",IF(B22>40,$E$110,$E$111)) -> v/Bi | E23: =IF(E15+G15=0,"",SUM(E15:E22)) ->  | G23: =IF(E15+G15=0,"",SUM(G15:G22)) ->  | I23: =IF(H22="","spb",IF(H22>40,$E$110,$E$111)) -> v/Bi | K23: =IF(K15+M15=0,"",SUM(K15:K22)) ->  | M23: =IF(K15+M15=0,"",SUM(M15:M22)) ->  | O23: =IF(N22="","spb",IF(N22>40,$E$110,$E$111)) -> v/R. | Q23: =IF(Q15+S15=0,"",SUM(Q15:Q22)) ->  | S23: =IF(Q15+S15=0,"",SUM(S15:S22)) ->  | U23: =IF(T22="","spb",IF(T22>40,$E$110,$E$111)) -> v/R. | W23: =IF(W15+Y15=0,"",SUM(W15:W22)) ->  | Y23: =IF(W15+Y15=0,"",SUM(Y15:Y22)) ->  | AB23: =IF(AA22="","spb",IF(AA22>40,$E$110,$E$111)) -> spb | AD23: =IF(AD15+AF15=0,"",SUM(AD15:AD22)) ->  | AF23: =IF(AD15+AF15=0,"",SUM(AF15:AF22)) ->  | AH23: =IF(AG22="","spb",IF(AG22>40,$E$110,$E$111)) -> spb | AJ23: =IF(AJ15+AL15=0,"",SUM(AJ15:AJ22)) ->  | AL23: =IF(AJ15+AL15=0,"",SUM(AL15:AL22)) ->  | AN23: =IF(AM22="","spb",IF(AM22>40,$E$110,$E$111)) -> spb | AP23: =IF(AP15+AR15=0,"",SUM(AP15:AP22)) ->  | AR23: =IF(AP15+AR15=0,"",SUM(AR15:AR22)) ->  | AT23: =IF(AS22="","spb",IF(AS22>40,$E$110,$E$111)) -> spb | AV23: =IF(AV15+AX15=0,"",SUM(AV15:AV22)) ->  | AX23: =IF(AV15+AX15=0,"",SUM(AX15:AX22)) ->  | BB23: AG11 | BC23: 1 | BD23: =AG11 -> 0 | BE23: 0.00 | BF23: =AI3 ->  | BH23: =AH11 -> 0.00 | BJ23: 0.00
D24: =IF(B25="","",VLOOKUP(B25,Plancompta,3)) -> + | G24: =IF(B25="","",VLOOKUP(B25,Plancompta,4)) -> - | J24: =IF(H25="","",VLOOKUP(H25,Plancompta,3)) -> + | M24: =IF(H25="","",VLOOKUP(H25,Plancompta,4)) -> - | P24: =IF(N25="","",VLOOKUP(N25,Plancompta,3)) -> + | S24: =IF(N25="","",VLOOKUP(N25,Plancompta,4)) -> - | V24: =IF(T25="","",VLOOKUP(T25,Plancompta,3)) -> + | Y24: =IF(T25="","",VLOOKUP(T25,Plancompta,4)) -> - | AC24: =IF(AA25="","",VLOOKUP(AA25,Plancompta,3)) ->  | AF24: =IF(AA25="","",VLOOKUP(AA25,Plancompta,4)) ->  | AI24: =IF(AG25="","",VLOOKUP(AG25,Plancompta,3)) ->  | AL24: =IF(AG25="","",VLOOKUP(AG25,Plancompta,4)) ->  | AO24: =IF(AM25="","",VLOOKUP(AM25,Plancompta,3)) ->  | AR24: =IF(AM25="","",VLOOKUP(AM25,Plancompta,4)) ->  | AU24: =IF(AS25="","",VLOOKUP(AS25,Plancompta,3)) ->  | AX24: =IF(AS25="","",VLOOKUP(AS25,Plancompta,4)) ->  | BB24: AM11 | BC24: 1 | BD24: =AM11 -> 0 | BE24: 0.00 | BF24: =AO3 ->  | BH24: =AN11 -> 0.00
B25: 4200 | D25: =IF(B25="","",B25 & " " & VLOOKUP(B25,Plancompta,2)) -> 4200 Achats march. | H25: 4280 | J25: =IF(H25="","",H25 & " " & VLOOKUP(H25,Plancompta,2)) -> 4280 Variation stock | N25: 4290 | P25: =IF(N25="","",N25 & " " & VLOOKUP(N25,Plancompta,2)) -> 4290 Déd. obtenues | T25: 6700 | V25: =IF(T25="","",T25 & " " & VLOOKUP(T25,Plancompta,2)) -> 6700 ACE | AC25: =IF(AA25="","",AA25 & " " & VLOOKUP(AA25,Plancompta,2)) ->  | AI25: =IF(AG25="","",AG25 & " " & VLOOKUP(AG25,Plancompta,2)) ->  | AO25: =IF(AM25="","",AM25 & " " & VLOOKUP(AM25,Plancompta,2)) ->  | AU25: =IF(AS25="","",AS25 & " " & VLOOKUP(AS25,Plancompta,2)) ->  | BB25: AS11 | BC25: 1 | BD25: =AS11 -> 0 | BE25: 0.00 | BF25: =AU3 ->  | BH25: =AT11 -> 0.00 | BJ25: 0.00
BB26: AA22 | BC26: 1 | BD26: =AA22 -> 0 | BE26: 0.00 | BF26: =AC14 ->  | BH26: =AB22 -> 0.00 | BJ26: 0.00
C27: =$E$89 -> 0.00 | BB27: AG22 | BC27: 1 | BD27: =AG22 -> 0 | BE27: 0.00 | BF27: =AI14 ->  | BH27: =AH22 -> 0.00 | BJ27: 0.00
BB28: AM22 | BC28: 1 | BD28: =AM22 -> 0 | BE28: 0.00 | BF28: =AO14 ->  | BH28: =AN22 -> 0.00 | BJ28: 0.00
BB29: AS22 | BC29: 1 | BD29: =AS22 -> 0 | BE29: 0.00 | BF29: =AU14 ->  | BH29: =AT22 -> 0.00 | BJ29: 0.00 | BK29: =IF(BJ29=0,1,0) -> 1
BB30: AA33 | BC30: 1 | BD30: =AA33 -> 0 | BE30: 0.00 | BF30: =AC25 ->  | BH30: =AB33 -> 0.00 | BJ30: 0.00 | BK30: =IF(BJ30=0,1,0) -> 1
BB31: AG33 | BC31: 1 | BD31: =AG33 -> 0 | BE31: 0.00 | BF31: =AI25 ->  | BH31: =AH33 -> 0.00 | BJ31: 0.00 | BK31: =IF(BJ31=0,1,0) -> 1
BB32: AM33 | BC32: 1 | BD32: =AM33 -> 0 | BE32: 0.00 | BF32: =AO25 ->  | BH32: =AN33 -> 0.00 | BJ32: 0.00 | BK32: =IF(BJ32=0,1,0) -> 1
B33: 3 | C33: =E33-G33 -> 0.00 | D33: =IF(E33=0,"",C34) ->  | E33: =IF(E26+G26=0,0,IF(SUM(E26:E32)>SUM(G26:G32),0,SUM(G26:G32)-SUM(E26:E32))) -> 0.00 | F33: =IF(G33=0,"",C34) ->  | G33: =IF(E26+G26=0,0,IF(SUM(G26:G32)>SUM(E26:E32),0,SUM(E26:E32)-SUM(G26:G32))) -> 0.00 | H33: 4 | I33: =K33-M33 -> 0.00 | J33: =IF(K33=0,"",I34) ->  | K33: =IF(K26+M26=0,0,IF(SUM(K26:K32)>SUM(M26:M32),0,SUM(M26:M32)-SUM(K26:K32))) -> 0.00 | L33: =IF(M33=0,"",I34) ->  | M33: =IF(K26+M26=0,0,IF(SUM(M26:M32)>SUM(K26:K32),0,SUM(K26:K32)-SUM(M26:M32))) -> 0.00 | N33: 6 | O33: =Q33-S33 -> 0.00 | P33: =IF(Q33=0,"",O34) ->  | Q33: =IF(Q26+S26=0,0,IF(SUM(Q26:Q32)>SUM(S26:S32),0,SUM(S26:S32)-SUM(Q26:Q32))) -> 0.00 | R33: =IF(S33=0,"",O34) ->  | S33: =IF(Q26+S26=0,0,IF(SUM(S26:S32)>SUM(Q26:Q32),0,SUM(Q26:Q32)-SUM(S26:S32))) -> 0.00 | T33: 13 | U33: =W33-Y33 -> 0.00 | V33: =IF(W33=0,"",U34) ->  | W33: =IF(W26+Y26=0,0,IF(SUM(W26:W32)>SUM(Y26:Y32),0,SUM(Y26:Y32)-SUM(W26:W32))) -> 0.00 | X33: =IF(Y33=0,"",U34) ->  | Y33: =IF(W26+Y26=0,0,IF(SUM(Y26:Y32)>SUM(W26:W32),0,SUM(W26:W32)-SUM(Y26:Y32))) -> 0.00 | AB33: =AD33-AF33 -> 0.00 | AC33: =IF(AD33=0,"",AB34) ->  | AD33: =IF(AD26+AF26=0,0,IF(SUM(AD26:AD32)>SUM(AF26:AF32),0,SUM(AF26:AF32)-SUM(AD26:AD32))) -> 0.00 | AE33: =IF(AF33=0,"",AB34) ->  | AF33: =IF(AD26+AF26=0,0,IF(SUM(AF26:AF32)>SUM(AD26:AD32),0,SUM(AD26:AD32)-SUM(AF26:AF32))) -> 0.00 | AH33: =AJ33-AL33 -> 0.00 | AI33: =IF(AJ33=0,"",AH34) ->  | AJ33: =IF(AJ26+AL26=0,0,IF(SUM(AJ26:AJ32)>SUM(AL26:AL32),0,SUM(AL26:AL32)-SUM(AJ26:AJ32))) -> 0.00 | AK33: =IF(AL33=0,"",AH34) ->  | AL33: =IF(AJ26+AL26=0,0,IF(SUM(AL26:AL32)>SUM(AJ26:AJ32),0,SUM(AJ26:AJ32)-SUM(AL26:AL32))) -> 0.00 | AN33: =AP33-AR33 -> 0.00 | AO33: =IF(AP33=0,"",AN34) ->  | AP33: =IF(AP26+AR26=0,0,IF(SUM(AP26:AP32)>SUM(AR26:AR32),0,SUM(AR26:AR32)-SUM(AP26:AP32))) -> 0.00 | AQ33: =IF(AR33=0,"",AN34) ->  | AR33: =IF(AP26+AR26=0,0,IF(SUM(AR26:AR32)>SUM(AP26:AP32),0,SUM(AP26:AP32)-SUM(AR26:AR32))) -> 0.00 | AT33: =AV33-AX33 -> 0.00 | AU33: =IF(AV33=0,"",AT34) ->  | AV33: =IF(AV26+AX26=0,0,IF(SUM(AV26:AV32)>SUM(AX26:AX32),0,SUM(AX26:AX32)-SUM(AV26:AV32))) -> 0.00 | AW33: =IF(AX33=0,"",AT34) ->  | AX33: =IF(AV26+AX26=0,0,IF(SUM(AX26:AX32)>SUM(AV26:AV32),0,SUM(AV26:AV32)-SUM(AX26:AX32))) -> 0.00 | BB33: AS33 | BC33: 1 | BD33: =AS33 -> 0 | BE33: 0.00 | BF33: =AU25 ->  | BH33: =AT33 -> 0.00 | BJ33: 0.00
C34: =IF(B33="","spb",IF(B33>40,$E$110,$E$111)) -> v/R. | E34: =IF(E26+G26=0,"",SUM(E26:E33)) ->  | G34: =IF(E26+G26=0,"",SUM(G26:G33)) ->  | I34: =IF(H33="","spb",IF(H33>40,$E$110,$E$111)) -> v/R. | K34: =IF(K26+M26=0,"",SUM(K26:K33)) ->  | M34: =IF(K26+M26=0,"",SUM(M26:M33)) ->  | O34: =IF(N33="","spb",IF(N33>40,$E$110,$E$111)) -> v/R. | Q34: =IF(Q26+S26=0,"",SUM(Q26:Q33)) ->  | S34: =IF(Q26+S26=0,"",SUM(S26:S33)) ->  | U34: =IF(T33="","spb",IF(T33>40,$E$110,$E$111)) -> v/R. | W34: =IF(W26+Y26=0,"",SUM(W26:W33)) ->  | Y34: =IF(W26+Y26=0,"",SUM(Y26:Y33)) ->  | AB34: =IF(AA33="","spb",IF(AA33>40,$E$110,$E$111)) -> spb | AD34: =IF(AD26+AF26=0,"",SUM(AD26:AD33)) ->  | AF34: =IF(AD26+AF26=0,"",SUM(AF26:AF33)) ->  | AH34: =IF(AG33="","spb",IF(AG33>40,$E$110,$E$111)) -> spb | AJ34: =IF(AJ26+AL26=0,"",SUM(AJ26:AJ33)) ->  | AL34: =IF(AJ26+AL26=0,"",SUM(AL26:AL33)) ->  | AN34: =IF(AM33="","spb",IF(AM33>40,$E$110,$E$111)) -> spb | AP34: =IF(AP26+AR26=0,"",SUM(AP26:AP33)) ->  | AR34: =IF(AP26+AR26=0,"",SUM(AR26:AR33)) ->  | AT34: =IF(AS33="","spb",IF(AS33>40,$E$110,$E$111)) -> spb | AV34: =IF(AV26+AX26=0,"",SUM(AV26:AV33)) ->  | AX34: =IF(AV26+AX26=0,"",SUM(AX26:AX33)) ->  | BB34: AA44 | BC34: 1 | BD34: =AA44 -> 0 | BE34: 0.00 | BF34: =AC36 ->  | BH34: =AB44 -> 0.00 | BJ34: 0.00
D35: =IF(B36="","",VLOOKUP(B36,Plancompta,3)) ->  | G35: =IF(B36="","",VLOOKUP(B36,Plancompta,4)) ->  | J35: =IF(H36="","",VLOOKUP(H36,Plancompta,3)) ->  | M35: =IF(H36="","",VLOOKUP(H36,Plancompta,4)) ->  | P35: =IF(N36="","",VLOOKUP(N36,Plancompta,3)) ->  | S35: =IF(N36="","",VLOOKUP(N36,Plancompta,4)) ->  | V35: =IF(T36="","",VLOOKUP(T36,Plancompta,3)) ->  | Y35: =IF(T36="","",VLOOKUP(T36,Plancompta,4)) ->  | AC35: =IF(AA36="","",VLOOKUP(AA36,Plancompta,3)) ->  | AF35: =IF(AA36="","",VLOOKUP(AA36,Plancompta,4)) ->  | AI35: =IF(AG36="","",VLOOKUP(AG36,Plancompta,3)) ->  | AL35: =IF(AG36="","",VLOOKUP(AG36,Plancompta,4)) ->  | AO35: =IF(AM36="","",VLOOKUP(AM36,Plancompta,3)) ->  | AR35: =IF(AM36="","",VLOOKUP(AM36,Plancompta,4)) ->  | AU35: =IF(AS36="","",VLOOKUP(AS36,Plancompta,3)) ->  | AX35: =IF(AS36="","",VLOOKUP(AS36,Plancompta,4)) ->  | BB35: AG44 | BC35: 1 | BD35: =AG44 -> 0 | BE35: 0.00 | BF35: =AI36 ->  | BH35: =AH44 -> 0.00
D36: =IF(B36="","",B36 & " " & VLOOKUP(B36,Plancompta,2)) ->  | J36: =IF(H36="","",H36 & " " & VLOOKUP(H36,Plancompta,2)) ->  | P36: =IF(N36="","",N36 & " " & VLOOKUP(N36,Plancompta,2)) ->  | V36: =IF(T36="","",T36 & " " & VLOOKUP(T36,Plancompta,2)) ->  | AC36: =IF(AA36="","",AA36 & " " & VLOOKUP(AA36,Plancompta,2)) ->  | AI36: =IF(AG36="","",AG36 & " " & VLOOKUP(AG36,Plancompta,2)) ->  | AO36: =IF(AM36="","",AM36 & " " & VLOOKUP(AM36,Plancompta,2)) ->  | AU36: =IF(AS36="","",AS36 & " " & VLOOKUP(AS36,Plancompta,2)) ->  | BB36: AM44 | BC36: 1 | BD36: =AM44 -> 0 | BE36: 0.00 | BF36: =AO36 ->  | BH36: =AN44 -> 0.00 | BJ36: 0.00
BB37: AS44 | BC37: 1 | BD37: =AS44 -> 0 | BE37: 0.00 | BF37: =AU36 ->  | BH37: =AT44 -> 0.00 | BJ37: 0.00
C38: =IF(D38>0,"BN","") ->  | BB38: B55 | BC38: =IF(INT(BD38/2)=BD38/2,1,2) -> 1 | BD38: =B55 -> 0 | BE38: 0.00 | BF38: =D47 ->  | BH38: =C55 -> 0.00 | BJ38: 0.00
BB39: H55 | BC39: 1 | BD39: =H55 -> 0 | BE39: 0.00 | BF39: =J47 ->  | BH39: =I55 -> 0.00 | BJ39: 0.00
BB40: N55 | BC40: 1 | BD40: =N55 -> 0 | BE40: 0.00 | BF40: =P47 ->  | BH40: =O55 -> 0.00 | BJ40: 0.00 | BK40: =IF(BJ40=0,1,0) -> 1
BB41: T55 | BC41: 1 | BD41: =T55 -> 0 | BE41: 0.00 | BF41: =V47 ->  | BH41: =U55 -> 0.00 | BJ41: 0.00 | BK41: =IF(BJ41=0,1,0) -> 1
BB42: AA55 | BC42: 1 | BD42: =AA55 -> 0 | BE42: 0.00 | BF42: =AC47 ->  | BH42: =AB55 -> 0.00 | BJ42: 0.00 | BK42: =IF(BJ42=0,1,0) -> 1
BB43: AG55 | BC43: 1 | BD43: =AG55 -> 0 | BE43: 0.00 | BF43: =AI47 ->  | BH43: =AH55 -> 0.00 | BJ43: 0.00 | BK43: =IF(BJ43=0,1,0) -> 1
C44: =E44-G44 -> 0.00 | D44: =IF(E44=0,"",C45) ->  | E44: =IF(E37+G37=0,0,IF(SUM(E37:E43)>SUM(G37:G43),0,SUM(G37:G43)-SUM(E37:E43))) -> 0.00 | F44: =IF(G44=0,"",C45) ->  | G44: =IF(E37+G37=0,0,IF(SUM(G37:G43)>SUM(E37:E43),0,SUM(E37:E43)-SUM(G37:G43))) -> 0.00 | I44: =K44-M44 -> 0.00 | J44: =IF(K44=0,"",I45) ->  | K44: =IF(K37+M37=0,0,IF(SUM(K37:K43)>SUM(M37:M43),0,SUM(M37:M43)-SUM(K37:K43))) -> 0.00 | L44: =IF(M44=0,"",I45) ->  | M44: =IF(K37+M37=0,0,IF(SUM(M37:M43)>SUM(K37:K43),0,SUM(K37:K43)-SUM(M37:M43))) -> 0.00 | O44: =Q44-S44 -> 0.00 | P44: =IF(Q44=0,"",O45) ->  | Q44: =IF(Q37+S37=0,0,IF(SUM(Q37:Q43)>SUM(S37:S43),0,SUM(S37:S43)-SUM(Q37:Q43))) -> 0.00 | R44: =IF(S44=0,"",O45) ->  | S44: =IF(Q37+S37=0,0,IF(SUM(S37:S43)>SUM(Q37:Q43),0,SUM(Q37:Q43)-SUM(S37:S43))) -> 0.00 | U44: =W44-Y44 -> 0.00 | V44: =IF(W44=0,"",U45) ->  | W44: =IF(W37+Y37=0,0,IF(SUM(W37:W43)>SUM(Y37:Y43),0,SUM(Y37:Y43)-SUM(W37:W43))) -> 0.00 | X44: =IF(Y44=0,"",U45) ->  | Y44: =IF(W37+Y37=0,0,IF(SUM(Y37:Y43)>SUM(W37:W43),0,SUM(W37:W43)-SUM(Y37:Y43))) -> 0.00 | AB44: =AD44-AF44 -> 0.00 | AC44: =IF(AD44=0,"",AB45) ->  | AD44: =IF(AD37+AF37=0,0,IF(SUM(AD37:AD43)>SUM(AF37:AF43),0,SUM(AF37:AF43)-SUM(AD37:AD43))) -> 0.00 | AE44: =IF(AF44=0,"",AB45) ->  | AF44: =IF(AD37+AF37=0,0,IF(SUM(AF37:AF43)>SUM(AD37:AD43),0,SUM(AD37:AD43)-SUM(AF37:AF43))) -> 0.00 | AH44: =AJ44-AL44 -> 0.00 | AI44: =IF(AJ44=0,"",AH45) ->  | AJ44: =IF(AJ37+AL37=0,0,IF(SUM(AJ37:AJ43)>SUM(AL37:AL43),0,SUM(AL37:AL43)-SUM(AJ37:AJ43))) -> 0.00 | AK44: =IF(AL44=0,"",AH45) ->  | AL44: =IF(AJ37+AL37=0,0,IF(SUM(AL37:AL43)>SUM(AJ37:AJ43),0,SUM(AJ37:AJ43)-SUM(AL37:AL43))) -> 0.00 | AN44: =AP44-AR44 -> 0.00 | AO44: =IF(AP44=0,"",AN45) ->  | AP44: =IF(AP37+AR37=0,0,IF(SUM(AP37:AP43)>SUM(AR37:AR43),0,SUM(AR37:AR43)-SUM(AP37:AP43))) -> 0.00 | AQ44: =IF(AR44=0,"",AN45) ->  | AR44: =IF(AP37+AR37=0,0,IF(SUM(AR37:AR43)>SUM(AP37:AP43),0,SUM(AP37:AP43)-SUM(AR37:AR43))) -> 0.00 | AT44: =AV44-AX44 -> 0.00 | AU44: =IF(AV44=0,"",AT45) ->  | AV44: =IF(AV37+AX37=0,0,IF(SUM(AV37:AV43)>SUM(AX37:AX43),0,SUM(AX37:AX43)-SUM(AV37:AV43))) -> 0.00 | AW44: =IF(AX44=0,"",AT45) ->  | AX44: =IF(AV37+AX37=0,0,IF(SUM(AX37:AX43)>SUM(AV37:AV43),0,SUM(AV37:AV43)-SUM(AX37:AX43))) -> 0.00 | BB44: AM55 | BC44: 1 | BD44: =AM55 -> 0 | BE44: 0.00 | BF44: =AO47 ->  | BH44: =AN55 -> 0.00 | BJ44: 0.00
C45: =IF(B44="","spb",IF(B44>40,$E$110,$E$111)) -> spb | E45: =IF(E37+G37=0,"",SUM(E37:E44)) ->  | G45: =IF(E37+G37=0,"",SUM(G37:G44)) ->  | I45: =IF(H44="","spb",IF(H44>40,$E$110,$E$111)) -> spb | K45: =IF(K37+M37=0,"",SUM(K37:K44)) ->  | M45: =IF(K37+M37=0,"",SUM(M37:M44)) ->  | O45: =IF(N44="","spb",IF(N44>40,$E$110,$E$111)) -> spb | Q45: =IF(Q37+S37=0,"",SUM(Q37:Q44)) ->  | S45: =IF(Q37+S37=0,"",SUM(S37:S44)) ->  | U45: =IF(T44="","spb",IF(T44>40,$E$110,$E$111)) -> spb | W45: =IF(W37+Y37=0,"",SUM(W37:W44)) ->  | Y45: =IF(W37+Y37=0,"",SUM(Y37:Y44)) ->  | AB45: =IF(AA44="","spb",IF(AA44>40,$E$110,$E$111)) -> spb | AD45: =IF(AD37+AF37=0,"",SUM(AD37:AD44)) ->  | AF45: =IF(AD37+AF37=0,"",SUM(AF37:AF44)) ->  | AH45: =IF(AG44="","spb",IF(AG44>40,$E$110,$E$111)) -> spb | AJ45: =IF(AJ37+AL37=0,"",SUM(AJ37:AJ44)) ->  | AL45: =IF(AJ37+AL37=0,"",SUM(AL37:AL44)) ->  | AN45: =IF(AM44="","spb",IF(AM44>40,$E$110,$E$111)) -> spb | AP45: =IF(AP37+AR37=0,"",SUM(AP37:AP44)) ->  | AR45: =IF(AP37+AR37=0,"",SUM(AR37:AR44)) ->  | AT45: =IF(AS44="","spb",IF(AS44>40,$E$110,$E$111)) -> spb | AV45: =IF(AV37+AX37=0,"",SUM(AV37:AV44)) ->  | AX45: =IF(AV37+AX37=0,"",SUM(AX37:AX44)) ->  | BB45: AS55 | BC45: 1 | BD45: =AS55 -> 0 | BE45: 0.00 | BF45: =AU47 ->  | BH45: =AT55 -> 0.00 | BJ45: 0.00
D46: =IF(B47="","",VLOOKUP(B47,Plancompta,3)) ->  | G46: =IF(B47="","",VLOOKUP(B47,Plancompta,4)) ->  | J46: =IF(H47="","",VLOOKUP(H47,Plancompta,3)) ->  | M46: =IF(H47="","",VLOOKUP(H47,Plancompta,4)) ->  | P46: =IF(N47="","",VLOOKUP(N47,Plancompta,3)) ->  | S46: =IF(N47="","",VLOOKUP(N47,Plancompta,4)) ->  | V46: =IF(T47="","",VLOOKUP(T47,Plancompta,3)) ->  | Y46: =IF(T47="","",VLOOKUP(T47,Plancompta,4)) ->  | AC46: =IF(AA47="","",VLOOKUP(AA47,Plancompta,3)) ->  | AF46: =IF(AA47="","",VLOOKUP(AA47,Plancompta,4)) ->  | AI46: =IF(AG47="","",VLOOKUP(AG47,Plancompta,3)) ->  | AL46: =IF(AG47="","",VLOOKUP(AG47,Plancompta,4)) ->  | AO46: =IF(AM47="","",VLOOKUP(AM47,Plancompta,3)) ->  | AR46: =IF(AM47="","",VLOOKUP(AM47,Plancompta,4)) ->  | AU46: =IF(AS47="","",VLOOKUP(AS47,Plancompta,3)) ->  | AX46: =IF(AS47="","",VLOOKUP(AS47,Plancompta,4)) ->  | BB46: B66 | BC46: 1 | BD46: =B66 -> 0 | BE46: 0.00 | BF46: =D58 ->  | BH46: =C66 -> 0.00
D47: =IF(B47="","",B47 & " " & VLOOKUP(B47,Plancompta,2)) ->  | J47: =IF(H47="","",H47 & " " & VLOOKUP(H47,Plancompta,2)) ->  | P47: =IF(N47="","",N47 & " " & VLOOKUP(N47,Plancompta,2)) ->  | V47: =IF(T47="","",T47 & " " & VLOOKUP(T47,Plancompta,2)) ->  | AC47: =IF(AA47="","",AA47 & " " & VLOOKUP(AA47,Plancompta,2)) ->  | AI47: =IF(AG47="","",AG47 & " " & VLOOKUP(AG47,Plancompta,2)) ->  | AO47: =IF(AM47="","",AM47 & " " & VLOOKUP(AM47,Plancompta,2)) ->  | AU47: =IF(AS47="","",AS47 & " " & VLOOKUP(AS47,Plancompta,2)) ->  | BB47: H66 | BC47: 1 | BD47: =H66 -> 0 | BE47: 0.00 | BF47: =J58 ->  | BH47: =I66 -> 0.00 | BJ47: 0.00
BB48: N66 | BC48: 1 | BD48: =N66 -> 0 | BE48: 0.00 | BF48: =P58 ->  | BH48: =O66 -> 0.00 | BJ48: 0.00
BB49: T66 | BC49: 1 | BD49: =T66 -> 0 | BE49: 0.00 | BF49: =V58 ->  | BH49: =U66 -> 0.00 | BJ49: 0.00
BB50: AA66 | BC50: 1 | BD50: =AA66 -> 0 | BE50: 0.00 | BF50: =AC58 ->  | BH50: =AB66 -> 0.00 | BJ50: 0.00
BB51: AG66 | BC51: 1 | BD51: =AG66 -> 0 | BE51: 0.00 | BF51: =AI58 ->  | BH51: =AH66 -> 0.00 | BJ51: 0.00 | BK51: =IF(BJ51=0,1,0) -> 1
BB52: AM66 | BC52: 1 | BD52: =AM66 -> 0 | BE52: 0.00 | BF52: =AO58 ->  | BH52: =AN66 -> 0.00 | BJ52: 0.00 | BK52: =IF(BJ52=0,1,0) -> 1
BB53: AS66 | BE53: 0.00 | BF53: =AU58 ->  | BH53: =AT66 -> 0.00 | BJ53: 0.00 | BK53: =IF(BJ53=0,1,0) -> 1
BD54: 1 | BJ54: 0.00 | BK54: =IF(BJ54=0,1,0) -> 1
C55: =E55-G55 -> 0.00 | D55: =IF(E55=0,"",C56) ->  | E55: =IF(E48+G48=0,0,IF(SUM(E48:E54)>SUM(G48:G54),0,SUM(G48:G54)-SUM(E48:E54))) -> 0.00 | F55: =IF(G55=0,"",C56) ->  | G55: =IF(E48+G48=0,0,IF(SUM(G48:G54)>SUM(E48:E54),0,SUM(E48:E54)-SUM(G48:G54))) -> 0.00 | I55: =K55-M55 -> 0.00 | J55: =IF(K55=0,"",I56) ->  | K55: =IF(K48+M48=0,0,IF(SUM(K48:K54)>SUM(M48:M54),0,SUM(M48:M54)-SUM(K48:K54))) -> 0.00 | L55: =IF(M55=0,"",I56) ->  | M55: =IF(K48+M48=0,0,IF(SUM(M48:M54)>SUM(K48:K54),0,SUM(K48:K54)-SUM(M48:M54))) -> 0.00 | O55: =Q55-S55 -> 0.00 | P55: =IF(Q55=0,"",O56) ->  | Q55: =IF(Q48+S48=0,0,IF(SUM(Q48:Q54)>SUM(S48:S54),0,SUM(S48:S54)-SUM(Q48:Q54))) -> 0.00 | R55: =IF(S55=0,"",O56) ->  | S55: =IF(Q48+S48=0,0,IF(SUM(S48:S54)>SUM(Q48:Q54),0,SUM(Q48:Q54)-SUM(S48:S54))) -> 0.00 | U55: =W55-Y55 -> 0.00 | V55: =IF(W55=0,"",U56) ->  | W55: =IF(W48+Y48=0,0,IF(SUM(W48:W54)>SUM(Y48:Y54),0,SUM(Y48:Y54)-SUM(W48:W54))) -> 0.00 | X55: =IF(Y55=0,"",U56) ->  | Y55: =IF(W48+Y48=0,0,IF(SUM(Y48:Y54)>SUM(W48:W54),0,SUM(W48:W54)-SUM(Y48:Y54))) -> 0.00 | AB55: =AD55-AF55 -> 0.00 | AC55: =IF(AD55=0,"",AB56) ->  | AD55: =IF(AD48+AF48=0,0,IF(SUM(AD48:AD54)>SUM(AF48:AF54),0,SUM(AF48:AF54)-SUM(AD48:AD54))) -> 0.00 | AE55: =IF(AF55=0,"",AB56) ->  | AF55: =IF(AD48+AF48=0,0,IF(SUM(AF48:AF54)>SUM(AD48:AD54),0,SUM(AD48:AD54)-SUM(AF48:AF54))) -> 0.00 | AH55: =AJ55-AL55 -> 0.00 | AI55: =IF(AJ55=0,"",AH56) ->  | AJ55: =IF(AJ48+AL48=0,0,IF(SUM(AJ48:AJ54)>SUM(AL48:AL54),0,SUM(AL48:AL54)-SUM(AJ48:AJ54))) -> 0.00 | AK55: =IF(AL55=0,"",AH56) ->  | AL55: =IF(AJ48+AL48=0,0,IF(SUM(AL48:AL54)>SUM(AJ48:AJ54),0,SUM(AJ48:AJ54)-SUM(AL48:AL54))) -> 0.00 | AN55: =AP55-AR55 -> 0.00 | AO55: =IF(AP55=0,"",AN56) ->  | AP55: =IF(AP48+AR48=0,0,IF(SUM(AP48:AP54)>SUM(AR48:AR54),0,SUM(AR48:AR54)-SUM(AP48:AP54))) -> 0.00 | AQ55: =IF(AR55=0,"",AN56) ->  | AR55: =IF(AP48+AR48=0,0,IF(SUM(AR48:AR54)>SUM(AP48:AP54),0,SUM(AP48:AP54)-SUM(AR48:AR54))) -> 0.00 | AT55: =AV55-AX55 -> 0.00 | AU55: =IF(AV55=0,"",AT56) ->  | AV55: =IF(AV48+AX48=0,0,IF(SUM(AV48:AV54)>SUM(AX48:AX54),0,SUM(AX48:AX54)-SUM(AV48:AV54))) -> 0.00 | AW55: =IF(AX55=0,"",AT56) ->  | AX55: =IF(AV48+AX48=0,0,IF(SUM(AX48:AX54)>SUM(AV48:AV54),0,SUM(AV48:AV54)-SUM(AX48:AX54))) -> 0.00 | BD55: 2 | BJ55: 0.00
C56: =IF(B55="","spb",IF(B55>40,$E$110,$E$111)) -> spb | E56: =IF(E48+G48=0,"",SUM(E48:E55)) ->  | G56: =IF(E48+G48=0,"",SUM(G48:G55)) ->  | I56: =IF(H55="","spb",IF(H55>40,$E$110,$E$111)) -> spb | K56: =IF(K48+M48=0,"",SUM(K48:K55)) ->  | M56: =IF(K48+M48=0,"",SUM(M48:M55)) ->  | O56: =IF(N55="","spb",IF(N55>40,$E$110,$E$111)) -> spb | Q56: =IF(Q48+S48=0,"",SUM(Q48:Q55)) ->  | S56: =IF(Q48+S48=0,"",SUM(S48:S55)) ->  | U56: =IF(T55="","spb",IF(T55>40,$E$110,$E$111)) -> spb | W56: =IF(W48+Y48=0,"",SUM(W48:W55)) ->  | Y56: =IF(W48+Y48=0,"",SUM(Y48:Y55)) ->  | AB56: =IF(AA55="","spb",IF(AA55>40,$E$110,$E$111)) -> spb | AD56: =IF(AD48+AF48=0,"",SUM(AD48:AD55)) ->  | AF56: =IF(AD48+AF48=0,"",SUM(AF48:AF55)) ->  | AH56: =IF(AG55="","spb",IF(AG55>40,$E$110,$E$111)) -> spb | AJ56: =IF(AJ48+AL48=0,"",SUM(AJ48:AJ55)) ->  | AL56: =IF(AJ48+AL48=0,"",SUM(AL48:AL55)) ->  | AN56: =IF(AM55="","spb",IF(AM55>40,$E$110,$E$111)) -> spb | AP56: =IF(AP48+AR48=0,"",SUM(AP48:AP55)) ->  | AR56: =IF(AP48+AR48=0,"",SUM(AR48:AR55)) ->  | AT56: =IF(AS55="","spb",IF(AS55>40,$E$110,$E$111)) -> spb | AV56: =IF(AV48+AX48=0,"",SUM(AV48:AV55)) ->  | AX56: =IF(AV48+AX48=0,"",SUM(AX48:AX55)) ->  | BD56: 3 | BJ56: 0.00
D57: =IF(B58="","",VLOOKUP(B58,Plancompta,3)) ->  | G57: =IF(B58="","",VLOOKUP(B58,Plancompta,4)) ->  | J57: =IF(H58="","",VLOOKUP(H58,Plancompta,3)) ->  | M57: =IF(H58="","",VLOOKUP(H58,Plancompta,4)) ->  | P57: =IF(N58="","",VLOOKUP(N58,Plancompta,3)) ->  | S57: =IF(N58="","",VLOOKUP(N58,Plancompta,4)) ->  | V57: =IF(T58="","",VLOOKUP(T58,Plancompta,3)) ->  | Y57: =IF(T58="","",VLOOKUP(T58,Plancompta,4)) ->  | AC57: =IF(AA58="","",VLOOKUP(AA58,Plancompta,3)) ->  | AF57: =IF(AA58="","",VLOOKUP(AA58,Plancompta,4)) ->  | AI57: =IF(AG58="","",VLOOKUP(AG58,Plancompta,3)) ->  | AL57: =IF(AG58="","",VLOOKUP(AG58,Plancompta,4)) ->  | AO57: =IF(AM58="","",VLOOKUP(AM58,Plancompta,3)) ->  | AR57: =IF(AM58="","",VLOOKUP(AM58,Plancompta,4)) ->  | AU57: =IF(AS58="","",VLOOKUP(AS58,Plancompta,3)) ->  | AX57: =IF(AS58="","",VLOOKUP(AS58,Plancompta,4)) ->  | BD57: 4
D58: =IF(B58="","",B58 & " " & VLOOKUP(B58,Plancompta,2)) ->  | J58: =IF(H58="","",H58 & " " & VLOOKUP(H58,Plancompta,2)) ->  | P58: =IF(N58="","",N58 & " " & VLOOKUP(N58,Plancompta,2)) ->  | V58: =IF(T58="","",T58 & " " & VLOOKUP(T58,Plancompta,2)) ->  | AC58: =IF(AA58="","",AA58 & " " & VLOOKUP(AA58,Plancompta,2)) ->  | AI58: =IF(AG58="","",AG58 & " " & VLOOKUP(AG58,Plancompta,2)) ->  | AO58: =IF(AM58="","",AM58 & " " & VLOOKUP(AM58,Plancompta,2)) ->  | AU58: =IF(AS58="","",AS58 & " " & VLOOKUP(AS58,Plancompta,2)) ->  | BD58: 5 | BJ58: 0.00
BD59: 6 | BJ59: 0.00
BD60: 7 | BJ60: 0.00
BD61: 8 | BJ61: 0.00
BD62: 9 | BJ62: 0.00 | BK62: =IF(BJ62=0,1,0) -> 1
BD63: 10 | BJ63: 0.00 | BK63: =IF(BJ63=0,1,0) -> 1
BD64: 11 | BJ64: 0.00 | BK64: =IF(BJ64=0,1,0) -> 1
BD65: 12 | BJ65: 0.00 | BK65: =IF(BJ65=0,1,0) -> 1
C66: =E66-G66 -> 0.00 | D66: =IF(E66=0,"",C67) ->  | E66: =IF(E59+G59=0,0,IF(SUM(E59:E65)>SUM(G59:G65),0,SUM(G59:G65)-SUM(E59:E65))) -> 0.00 | F66: =IF(G66=0,"",C67) ->  | G66: =IF(E59+G59=0,0,IF(SUM(G59:G65)>SUM(E59:E65),0,SUM(E59:E65)-SUM(G59:G65))) -> 0.00 | I66: =K66-M66 -> 0.00 | J66: =IF(K66=0,"",I67) ->  | K66: =IF(K59+M59=0,0,IF(SUM(K59:K65)>SUM(M59:M65),0,SUM(M59:M65)-SUM(K59:K65))) -> 0.00 | L66: =IF(M66=0,"",I67) ->  | M66: =IF(K59+M59=0,0,IF(SUM(M59:M65)>SUM(K59:K65),0,SUM(K59:K65)-SUM(M59:M65))) -> 0.00 | O66: =Q66-S66 -> 0.00 | P66: =IF(Q66=0,"",O67) ->  | Q66: =IF(Q59+S59=0,0,IF(SUM(Q59:Q65)>SUM(S59:S65),0,SUM(S59:S65)-SUM(Q59:Q65))) -> 0.00 | R66: =IF(S66=0,"",O67) ->  | S66: =IF(Q59+S59=0,0,IF(SUM(S59:S65)>SUM(Q59:Q65),0,SUM(Q59:Q65)-SUM(S59:S65))) -> 0.00 | U66: =W66-Y66 -> 0.00 | V66: =IF(W66=0,"",U67) ->  | W66: =IF(W59+Y59=0,0,IF(SUM(W59:W65)>SUM(Y59:Y65),0,SUM(Y59:Y65)-SUM(W59:W65))) -> 0.00 | X66: =IF(Y66=0,"",U67) ->  | Y66: =IF(W59+Y59=0,0,IF(SUM(Y59:Y65)>SUM(W59:W65),0,SUM(W59:W65)-SUM(Y59:Y65))) -> 0.00 | AB66: =AD66-AF66 -> 0.00 | AC66: =IF(AD66=0,"",AB67) ->  | AD66: =IF(AD59+AF59=0,0,IF(SUM(AD59:AD65)>SUM(AF59:AF65),0,SUM(AF59:AF65)-SUM(AD59:AD65))) -> 0.00 | AE66: =IF(AF66=0,"",AB67) ->  | AF66: =IF(AD59+AF59=0,0,IF(SUM(AF59:AF65)>SUM(AD59:AD65),0,SUM(AD59:AD65)-SUM(AF59:AF65))) -> 0.00 | AH66: =AJ66-AL66 -> 0.00 | AI66: =IF(AJ66=0,"",AH67) ->  | AJ66: =IF(AJ59+AL59=0,0,IF(SUM(AJ59:AJ65)>SUM(AL59:AL65),0,SUM(AL59:AL65)-SUM(AJ59:AJ65))) -> 0.00 | AK66: =IF(AL66=0,"",AH67) ->  | AL66: =IF(AJ59+AL59=0,0,IF(SUM(AL59:AL65)>SUM(AJ59:AJ65),0,SUM(AJ59:AJ65)-SUM(AL59:AL65))) -> 0.00 | AN66: =AP66-AR66 -> 0.00 | AO66: =IF(AP66=0,"",AN67) ->  | AP66: =IF(AP59+AR59=0,0,IF(SUM(AP59:AP65)>SUM(AR59:AR65),0,SUM(AR59:AR65)-SUM(AP59:AP65))) -> 0.00 | AQ66: =IF(AR66=0,"",AN67) ->  | AR66: =IF(AP59+AR59=0,0,IF(SUM(AR59:AR65)>SUM(AP59:AP65),0,SUM(AP59:AP65)-SUM(AR59:AR65))) -> 0.00 | AT66: =AV66-AX66 -> 0.00 | AU66: =IF(AV66=0,"",AT67) ->  | AV66: =IF(AV59+AX59=0,0,IF(SUM(AV59:AV65)>SUM(AX59:AX65),0,SUM(AX59:AX65)-SUM(AV59:AV65))) -> 0.00 | AW66: =IF(AX66=0,"",AT67) ->  | AX66: =IF(AV59+AX59=0,0,IF(SUM(AX59:AX65)>SUM(AV59:AV65),0,SUM(AV59:AV65)-SUM(AX59:AX65))) -> 0.00 | BD66: 13 | BJ66: 0.00
C67: =IF(B66="","spb",IF(B66>40,$E$110,$E$111)) -> spb | E67: =IF(E59+G59=0,"",SUM(E59:E66)) ->  | G67: =IF(E59+G59=0,"",SUM(G59:G66)) ->  | I67: =IF(H66="","spb",IF(H66>40,$E$110,$E$111)) -> spb | K67: =IF(K59+M59=0,"",SUM(K59:K66)) ->  | M67: =IF(K59+M59=0,"",SUM(M59:M66)) ->  | O67: =IF(N66="","spb",IF(N66>40,$E$110,$E$111)) -> spb | Q67: =IF(Q59+S59=0,"",SUM(Q59:Q66)) ->  | S67: =IF(Q59+S59=0,"",SUM(S59:S66)) ->  | U67: =IF(T66="","spb",IF(T66>40,$E$110,$E$111)) -> spb | W67: =IF(W59+Y59=0,"",SUM(W59:W66)) ->  | Y67: =IF(W59+Y59=0,"",SUM(Y59:Y66)) ->  | AB67: =IF(AA66="","spb",IF(AA66>40,$E$110,$E$111)) -> spb | AD67: =IF(AD59+AF59=0,"",SUM(AD59:AD66)) ->  | AF67: =IF(AD59+AF59=0,"",SUM(AF59:AF66)) ->  | AH67: =IF(AG66="","spb",IF(AG66>40,$E$110,$E$111)) -> spb | AJ67: =IF(AJ59+AL59=0,"",SUM(AJ59:AJ66)) ->  | AL67: =IF(AJ59+AL59=0,"",SUM(AL59:AL66)) ->  | AN67: =IF(AM66="","spb",IF(AM66>40,$E$110,$E$111)) -> spb | AP67: =IF(AP59+AR59=0,"",SUM(AP59:AP66)) ->  | AR67: =IF(AP59+AR59=0,"",SUM(AR59:AR66)) ->  | AT67: =IF(AS66="","spb",IF(AS66>40,$E$110,$E$111)) -> spb | AV67: =IF(AV59+AX59=0,"",SUM(AV59:AV66)) ->  | AX67: =IF(AV59+AX59=0,"",SUM(AX59:AX66)) ->  | BD67: 14 | BJ67: 0.00
BD68: 15
BD69: 16
D70: =IF(B70=0,"",VLOOKUP(B70,Libellés!B12:J39,2)) ->  | BB70: Ges col. | BD70: 17
BD71: 18
BD72: 19
D73: 9000 Résultat | N73: B I L A N final | BB73: 0 | BD73: 20
B74: 1 | D74: =IF(E74=0,"",VLOOKUP(B74,table,$BI$3,FALSE)) ->  | E74: =VLOOKUP(B74,table,2,FALSE) -> 0.00 | F74: =IF(G74=0,"",VLOOKUP(H74,table,$BI$3,FALSE)) ->  | G74: =VLOOKUP(H74,table,2,FALSE) -> 0.00 | H74: 2 | N74: Actif | T74: Passif | BB74: TRUE | BD74: 21
B75: 3 | D75: =IF(E75=0,"",VLOOKUP(B75,table,$BI$3,FALSE)) ->  | E75: =VLOOKUP(B75,table,2,FALSE) -> 0.00 | F75: =IF(G75=0,"",VLOOKUP(H75,table,$BI$3,FALSE)) ->  | G75: =VLOOKUP(H75,table,2,FALSE) -> 0.00 | H75: 4 | M75: 41 | N75: =IF(S75=0,"",VLOOKUP(M75,table,3,FALSE)) ->  | S75: =VLOOKUP(M75,table,2,FALSE) -> 0.00 | T75: =IF(Y75=0,"",VLOOKUP(Z75,table,3,FALSE)) ->  | Y75: =VLOOKUP(Z75,table,2,FALSE) -> 0.00 | Z75: 42 | BB75: TRUE | BD75: 22
B76: 5 | D76: =IF(E76=0,"",VLOOKUP(B76,table,$BI$3,FALSE)) ->  | E76: =VLOOKUP(B76,table,2,FALSE) -> 0.00 | F76: =IF(G76=0,"",VLOOKUP(H76,table,$BI$3,FALSE)) ->  | G76: =VLOOKUP(H76,table,2,FALSE) -> 0.00 | H76: 6 | M76: 43 | S76: 0.00 | Y76: 0.00 | Z76: 44 | BB76: TRUE | BD76: 23
D77: =IF(E77=0,"","BB") ->  | E77: =IF(SUM(E73:E76)>SUM(G73:G76),0,SUM(G73:G76)-SUM(E73:E76)) -> 0.00 | F77: =IF(G77=0,"","PB") ->  | G77: =IF(SUM(G73:G76)>SUM(E73:E76),0,SUM(E73:E76)-SUM(G73:G76)) -> 0.00 | M77: 45 | S77: 0.00 | Y77: 0.00 | Z77: 46 | BB77: TRUE | BD77: 24 | BK77: =IF(BJ77=0,1,0) -> 1
E78: =SUM(E73:E77) -> 0.00 | G78: =SUM(G73:G77) -> 0.00 | M78: 47 | S78: 0.00 | Y78: 0.00 | Z78: 48 | BB78: TRUE | BD78: 25 | BK78: 1
D79: =F77 ->  | E79: =G77 -> 0.00 | F79: =D77 ->  | G79: =E77 -> 0.00 | M79: 49 | S79: 0.00 | Y79: 0.00 | Z79: 50 | BB79: TRUE | BD79: 26 | BK79: 1
B80: 13 | D80: =IF(E80=0,"",VLOOKUP(B80,table,$BI$3,FALSE)) ->  | E80: =VLOOKUP(B80,table,2,FALSE) -> 0.00 | F80: =IF(G80=0,"",VLOOKUP(H80,table,$BI$3,FALSE)) ->  | G80: =VLOOKUP(H80,table,2,FALSE) -> 0.00 | H80: 14 | M80: 51 | S80: 0.00 | Y80: 0.00 | Z80: 52 | BB80: TRUE | BD80: 27 | BK80: 1
B81: 15 | E81: 0.00 | G81: 0.00 | H81: 16 | M81: 53 | N81: =IF(S81=0,"",VLOOKUP(M81,table,3,FALSE)) ->  | S81: 0.00 | T81: =IF(Y81=0,"",VLOOKUP(Z81,table,3,FALSE)) ->  | Y81: 0.00 | Z81: 54 | BB81: TRUE | BD81: 28 | BK81: 1
B82: 17 | E82: 0.00 | G82: 0.00 | H82: 18 | M82: 55 | S82: 0.00 | Y82: 0.00 | Z82: 56 | BD82: 29 | BK82: 1
B83: 19 | E83: 0.00 | G83: 0.00 | H83: 20 | M83: 57 | S83: 0.00 | Y83: 0.00 | Z83: 58 | BD83: 30 | BK83: 1
B84: 21 | E84: 0.00 | G84: 0.00 | H84: 22 | M84: 59 | S84: 0.00 | Y84: 0.00 | Z84: 60 | BD84: 31 | BK84: 1
B85: 23 | E85: 0.00 | G85: 0.00 | H85: 24 | M85: 61 | S85: 0.00 | Y85: 0.00 | Z85: 62 | BD85: 32 | BK85: 1
B86: 25 | E86: 0.00 | G86: 0.00 | H86: 26 | M86: 63 | S86: 0.00 | Y86: 0.00 | Z86: 64 | BD86: 33 | BK86: 1
B87: 27 | E87: 0.00 | G87: 0.00 | H87: 28 | M87: 65 | S87: 0.00 | Y87: 0.00 | Z87: 66 | BD87: 34 | BK87: 1
B88: 29 | E88: 0.00 | G88: 0.00 | H88: 30 | M88: 67 | S88: 0.00 | Y88: 0.00 | Z88: 68 | BD88: 35
C89: =E89-G89 -> 0.00 | D89: =IF(E89=0,"","BN") ->  | E89: =IF(SUM(E79:E88)>SUM(G79:G88),0,SUM(G79:G88)-SUM(E79:E88)) -> 0.00 | F89: =IF(G89=0,"","PN") ->  | G89: =IF(SUM(G79:G88)>SUM(E79:E88),0,SUM(E79:E88)-SUM(G79:G88)) -> 0.00 | N89: =IF(S89=0,"","spb") ->  | S89: =IF(SUM(S75:S88)>=SUM(Y75:Y88),0,SUM(Y75:Y88)-SUM(S75:S88)) -> 0.00 | T89: =IF(Y89=0,"","spb") ->  | Y89: =IF(SUM(Y75:Y88)>=SUM(S75:S88),0,SUM(S75:S88)-SUM(Y75:Y88)) -> 0.00 | BD89: 36
E90: =SUM(E79:E89) -> 0.00 | G90: =SUM(G79:G89) -> 0.00 | R90: =SUM(S75:S89) -> 0.00 | X90: =SUM(Y75:Y89) -> 0.00 | BD90: 37
BD91: 38
BD92: 39
B93: Réglages du Grand-Livre | BD93: 40
E94: 100 | G94: 100 | K94: 100 | M94: 100 | Q94: 100 | S94: 100 | W94: 100 | Y94: 100 | AD94: 100 | AF94: 100 | AJ94: 100 | AL94: 100 | AP94: 100 | AR94: 100 | AV94: 100 | AX94: 100 | BD94: 41 | BF94: =AU82 -> 0 | BG94: =LEFT(BF94,4) -> 0 | BH94: =AT97 -> 0
BD95: 42
A96: =Accueil!D31 -> Version 07.11.2011 - Compatible Excel Mac 2011 | BD96: 43
BD97: 44
BD98: 45
BD99: 46
BD100: 47
BD101: 48
BD102: 49
B103: TRUE | D103: TRUE | E103: 2 | F103: =12.75+((E103-1)*0.75) -> 13.5 | K103: 0 | BD103: 50
B104: FALSE | D104: FALSE | E104: 11 | BD104: 51
B105: FALSE | D105: TRUE | E105: 100 | BD105: 52
B106: 1 | D106: TRUE | E106: 80 | BD106: 53
B107: FALSE | D107: TRUE | E107: 145 | BD107: 54
B108: TRUE | D108: FALSE | E108: non | BD108: 55
E109: 1 | BD109: 56
B110: 0 | E110: v/Bi | BD110: 57
E111: v/R. | BD111: 58
B112: TRUE | D112: 0 | E112: 0 | BD112: 59
B113: TRUE | D113: 0 | BD113: 60
B114: FALSE | BD114: 61
B115: TRUE | BD115: 62
B116: FALSE | BD116: 63
BD117: 64
B118: 2 | BD118: 65
B119: TRUE | BD119: 66
D120: 1 | BD120: 67
D121: TRUE | BD121: 68
B122: 0
B123: 0
D124: 1
D125: 0
D126: 0 | M126: =IF(N126>0,"PN","") ->  | N126: =$G$89 -> 0.00 | O126: =IF(P126>0,"BN","") ->  | P126: =$E$89 -> 0.00
D127: 1 | O127: Pri
D128: j | E128: 16
J129: v/Ca
C130: =E130-G130 -> 0.00 | D130: =IF(E130=0,"",C131) ->  | E130: =IF(E123+G123=0,0,IF(SUM(E123:E129)>SUM(G123:G129),0,SUM(G123:G129)-SUM(E123:E129))) -> 0.00 | F130: =IF(G130=0,"",C131) ->  | G130: =IF(E123+G123=0,0,IF(SUM(G123:G129)>SUM(E123:E129),0,SUM(E123:E129)-SUM(G123:G129))) -> 0.00 | I130: =IF(J130>0,"BN","") -> BN | J130: Pri
D132: 9000 Résultat | P132: 9000 Résultat
B133: 1 | D133: =IF(E133=0,"",VLOOKUP(B133,table,$BI$3,FALSE)) ->  | E133: =VLOOKUP(B133,table,2,FALSE) -> 0.00 | F133: =IF(G133=0,"",VLOOKUP(H133,table,$BI$3,FALSE)) ->  | G133: =VLOOKUP(H133,table,2,FALSE) -> 0.00 | H133: 2 | N133: 1 | P133: =IF(Q133=0,"",VLOOKUP(N133,table,$BI$3,FALSE)) ->  | Q133: =VLOOKUP(N133,table,2,FALSE) -> 0.00 | R133: =IF(S133=0,"",VLOOKUP(T133,table,$BI$3,FALSE)) ->  | S133: =VLOOKUP(T133,table,2,FALSE) -> 0.00 | T133: 2
B134: 3 | E134: 0.00 | G134: 0.00 | H134: 4 | N134: 3 | Q134: =VLOOKUP(N134,table,2,FALSE) -> 0.00 | S134: =VLOOKUP(T134,table,2,FALSE) -> 0.00 | T134: 4
B135: 5 | E135: 0.00 | G135: 0.00 | H135: 6 | N135: 5 | Q135: 0.00 | S135: 0.00 | T135: 6
B136: 7 | E136: 0.00 | G136: 0.00 | H136: 8 | N136: 7 | Q136: 0.00 | S136: 0.00 | T136: 8
B137: 9 | E137: 0.00 | G137: 0.00 | H137: 10 | N137: 9 | Q137: 0.00 | S137: 0.00 | T137: 10
B138: 11 | E138: 0.00 | G138: 0.00 | H138: 12 | N138: 11 | Q138: 0.00 | S138: 0.00 | T138: 12
D139: =IF(E139=0,"","BB") ->  | E139: =IF(SUM(E133:E138)>SUM(G133:G138),0,SUM(G133:G138)-SUM(E133:E138)) -> 0.00 | F139: =IF(G139=0,"","PB") ->  | G139: =IF(SUM(G133:G138)>SUM(E133:E138),0,SUM(E133:E138)-SUM(G133:G138)) -> 0.00 | N139: 13 | Q139: 0.00 | S139: 0.00 | T139: 14
E140: =SUM(E133:E139) -> 0.00 | G140: =SUM(G133:G139) -> 0.00 | N140: 15 | Q140: 0.00 | S140: 0.00 | T140: 16
D141: =F139 ->  | E141: =G139 -> 0.00 | F141: =D139 ->  | G141: =E139 -> 0.00 | N141: 17 | Q141: =VLOOKUP(N141,table,2,FALSE) -> 0.00 | S141: =VLOOKUP(T141,table,2,FALSE) -> 0.00 | T141: 18
B142: 19 | D142: =IF(E142=0,"",VLOOKUP(B142,table,$BI$3,FALSE)) ->  | E142: =VLOOKUP(B142,table,2,FALSE) -> 0.00 | F142: =IF(G142=0,"",VLOOKUP(H142,table,$BI$3,FALSE)) ->  | G142: =VLOOKUP(H142,table,2,FALSE) -> 0.00 | H142: 20 | N142: 19 | Q142: 0.00 | S142: 0.00 | T142: 20
B143: 21 | E143: 0.00 | G143: 0.00 | H143: 22 | N143: 21 | Q143: 0.00 | S143: 0.00 | T143: 22
B144: 23 | E144: 0.00 | G144: 0.00 | H144: 24 | N144: 23 | Q144: 0.00 | S144: 0.00 | T144: 24
B145: 25 | E145: 0.00 | G145: 0.00 | H145: 26 | N145: 25 | Q145: 0.00 | S145: 0.00 | T145: 26
B146: 27 | E146: 0.00 | G146: 0.00 | H146: 28 | N146: 27 | Q146: 0.00 | S146: 0.00 | T146: 28
B147: 29 | E147: 0.00 | G147: 0.00 | H147: 30 | N147: 29 | Q147: 0.00 | S147: 0.00 | T147: 30
C148: =E148-G148 -> 0.00 | D148: =IF(E148=0,"","BN") ->  | E148: =IF(SUM(E141:E147)>SUM(G141:G147),0,SUM(G141:G147)-SUM(E141:E147)) -> 0.00 | F148: =IF(G148=0,"","PN") ->  | G148: =IF(SUM(G141:G147)>SUM(E141:E147),0,SUM(E141:E147)-SUM(G141:G147)) -> 0.00 | O148: =Q148-S148 -> 0.00 | P148: =IF(Q148=0,"","BN") ->  | Q148: =IF(SUM(Q133:Q147)>SUM(S133:S147),0,SUM(S133:S147)-SUM(Q133:Q147)) -> 0.00 | R148: =IF(S148=0,"","PN") ->  | S148: =IF(SUM(S133:S147)>SUM(Q133:Q147),0,SUM(Q133:Q147)-SUM(S133:S147)) -> 0.00
E149: =SUM(E141:E148) -> 0.00 | G149: =SUM(G141:G148) -> 0.00 | Q149: =SUM(Q133:Q148) -> 0.00 | S149: =SUM(S133:S148) -> 0.00
D154: =IF(B154="","",B154 & " " & VLOOKUP(B154,Plancompta,2)) ->  | P154: =IF(N154="","",N154 & " " & VLOOKUP(N154,Plancompta,2)) -> 
O162: =Q162-S162 -> 0.00 | P162: =IF(Q162=0,"",O163) ->  | Q162: =IF(Q155+S155=0,0,IF(SUM(Q155:Q161)>SUM(S155:S161),0,SUM(S155:S161)-SUM(Q155:Q161))) -> 0.00 | R162: =IF(S162=0,"",O163) ->  | S162: =IF(Q155+S155=0,0,IF(SUM(S155:S161)>SUM(Q155:Q161),0,SUM(Q155:Q161)-SUM(S155:S161))) -> 0.00
O163: =IF(N162="","spb",IF(N162>40,$E$110,$E$111)) -> spb | Q163: =IF(Q155+S155=0,"",SUM(Q155:Q162)) ->  | S163: =IF(Q155+S155=0,"",SUM(S155:S162)) -> 
P164: =IF(N165="","",VLOOKUP(N165,Plancompta,3)) ->  | S164: =IF(N165="","",VLOOKUP(N165,Plancompta,4)) -> 
P165: =IF(N165="","",N165 & " " & VLOOKUP(N165,Plancompta,2)) -> 
C173: =E173-G173 -> 0.00 | D173: =IF(E173=0,"",C174) ->  | E173: =IF(E155+G155=0,0,IF(SUM(E155:E172)>SUM(G155:G172),0,SUM(G155:G172)-SUM(E155:E172))) -> 0.00 | F173: =IF(G173=0,"",C174) ->  | G173: =IF(E155+G155=0,0,IF(SUM(G155:G172)>SUM(E155:E172),0,SUM(E155:E172)-SUM(G155:G172))) -> 0.00 | O173: =Q173-S173 -> 0.00 | P173: =IF(Q173=0,"",O174) ->  | Q173: =IF(Q166+S166=0,0,IF(SUM(Q166:Q172)>SUM(S166:S172),0,SUM(S166:S172)-SUM(Q166:Q172))) -> 0.00 | R173: =IF(S173=0,"",O174) ->  | S173: =IF(Q166+S166=0,0,IF(SUM(S166:S172)>SUM(Q166:Q172),0,SUM(Q166:Q172)-SUM(S166:S172))) -> 0.00
C174: =IF(B173="","spb",IF(B173>40,$E$110,$E$111)) -> spb | E174: =IF(E155+G155=0,"",SUM(E155:E173)) ->  | G174: =IF(E155+G155=0,"",SUM(G155:G173)) ->  | O174: =IF(N173="","spb",IF(N173>40,$E$110,$E$111)) -> spb | Q174: =IF(Q166+S166=0,"",SUM(Q166:Q173)) ->  | S174: =IF(Q166+S166=0,"",SUM(S166:S173)) -> 
D179: 9000 Résultat
B180: 1 | D180: =IF(E180=0,"",VLOOKUP(B180,table,$BI$3,FALSE)) ->  | E180: =VLOOKUP(B180,table,2,FALSE) -> 0.00 | F180: =IF(G180=0,"",VLOOKUP(H180,table,$BI$3,FALSE)) ->  | G180: =VLOOKUP(H180,table,2,FALSE) -> 0.00 | H180: 2
B181: 3 | D181: =IF(E181=0,"",VLOOKUP(B181,table,$BI$3,FALSE)) ->  | E181: =VLOOKUP(B181,table,2,FALSE) -> 0.00 | F181: =IF(G181=0,"",VLOOKUP(H181,table,$BI$3,FALSE)) ->  | G181: =VLOOKUP(H181,table,2,FALSE) -> 0.00 | H181: 4
B182: 5 | D182: =IF(E182=0,"",VLOOKUP(B182,table,$BI$3,FALSE)) ->  | E182: =VLOOKUP(B182,table,2,FALSE) -> 0.00 | F182: =IF(G182=0,"",VLOOKUP(H182,table,$BI$3,FALSE)) ->  | G182: =VLOOKUP(H182,table,2,FALSE) -> 0.00 | H182: 6
D183: =IF(E183=0,"","BB") ->  | E183: =IF(SUM(E179:E182)>SUM(G179:G182),0,SUM(G179:G182)-SUM(E179:E182)) -> 0.00 | F183: =IF(G183=0,"","PB") ->  | G183: =IF(SUM(G179:G182)>SUM(E179:E182),0,SUM(E179:E182)-SUM(G179:G182)) -> 0.00
E184: =SUM(E179:E183) -> 0.00 | G184: =SUM(G179:G183) -> 0.00
D185: =F183 ->  | E185: =G183 -> 0.00 | F185: =D183 ->  | G185: =E183 -> 0.00
B186: 13 | D186: =IF(E186=0,"",VLOOKUP(B186,table,$BI$3,FALSE)) ->  | E186: =VLOOKUP(B186,table,2,FALSE) -> 0.00 | F186: =IF(G186=0,"",VLOOKUP(H186,table,$BI$3,FALSE)) ->  | G186: =VLOOKUP(H186,table,2,FALSE) -> 0.00 | H186: 14
B187: 15 | E187: 0.00 | G187: 0.00 | H187: 16
B188: 17 | E188: 0.00 | G188: 0.00 | H188: 18
B189: 19 | E189: 0.00 | G189: 0.00 | H189: 20
B190: 21 | E190: 0.00 | G190: 0.00 | H190: 22
B191: 23 | E191: 0.00 | G191: 0.00 | H191: 24
B192: 25 | E192: 0.00 | G192: 0.00 | H192: 26
B193: 27 | E193: 0.00 | G193: 0.00 | H193: 28
B194: 29 | E194: 0.00 | G194: 0.00 | H194: 30
C195: =E195-G195 -> 0.00 | D195: =IF(E195=0,"","BN") ->  | E195: =IF(SUM(E185:E194)>SUM(G185:G194),0,SUM(G185:G194)-SUM(E185:E194)) -> 0.00 | F195: =IF(G195=0,"","PN") ->  | G195: =IF(SUM(G185:G194)>SUM(E185:E194),0,SUM(E185:E194)-SUM(G185:G194)) -> 0.00
E196: =SUM(E185:E195) -> 0.00 | G196: =SUM(G185:G195) -> 0.00
B203: 10 | D203: 10 | E203: 100.00 | F203: 10 | G203: 100.00 | H203: 10 | J203: 10 | K203: 100.00 | L203: 10 | M203: 100.00 | N203: 10 | P203: 10 | Q203: 100.00 | R203: 10 | S203: 100.00 | T203: 10 | V203: 10 | W203: 100.00 | X203: 10 | Y203: 100.00 | Z203: 10 | AA203: 10 | AC203: 10 | AD203: 100.00 | AE203: 10 | AF203: 100.00 | AG203: 10 | AI203: 10 | AJ203: 100.00 | AK203: 10 | AL203: 100.00 | AM203: 10 | AO203: 10 | AP203: 100.00 | AQ203: 10 | AR203: 100.00 | AS203: 10 | AU203: 10 | AV203: 100.00 | AW203: 10 | AX203: 100.00
R215: =IF(S215>0,"Pri","") ->  | S215: 0
G221: 0

Sheet Libellés
B1: Libellés
B3: Les libellés donnés ci-dessous correspondent aux boutons. Ils sont affichés automatiquement
B5: lorsqu'un bouton est activé.
B11: Bouton | C11: Libellé
B12: 0 | K12: Ce libellé ne s'affiche pas
B13: 1 | C13: Achats de marchandises à crédit CHF 93'000.-.
B14: 2 | C14: Ventes de marchandises à crédit CHF 21'000.-.
B15: 3 | C15: Ventes de marchandises au comptant CHF 100'000.-.
B16: 4 | C16: Paiements aux fournisseurs par la banque CHF 89'000.-
B17: 5 | C17: Paiements des clients en espèces CHF 19'000.-.
B18: 6 | C18: Escomptes et rabais accordés CHF 1'000.-.
B19: 7 | C19: Escomptes et rabais obtenus CHF 2'000.-.
B20: 8 | C20: Versements d'espèces à la banque CHF 101'000.-.
B21: 9 | C21: Règlement, par la banque, du loyer du magasin CHF 3'000.-.
B22: 10 | C22: Règlement, en espèces, de frais généraux divers CHF 17'000.-.
B23: 11 | C23: Inventaire final des marchandises CHF 31'000.-.
B24: 12 | C24: Virement du résultat dans le capital
B25: 13
B26: 14
B27: 15
B28: 16
B29: 17
B30: 18
B31: 19
B32: 20
B33: 21
B34: 22
B35: 23
B36: 24 | C36: Virement du résultat
B37: 25 | C37: Autre virement
B38: 26 | C38: Toutes les écritures "rouges" sont comptabilisées

Sheet Plan comptable
A1: La liste ci-dessous est modifiable. (Veuillez respecter la hiérarchie des no) | I1: Proposition de plan comptable (Le tableau ci-dessous n'est pas modifiable!)
B3: 1000 | C3: Caisse | D3: + | E3: - | G3: Kasse | I3: =B49 -> 2000 | J3: =C49 -> Fournisseurs | L3: =B96 -> 4000 | M3: =C96 -> Achats matière | O3: =B81 -> 3000 | P3: Production | S3: =B3 & " " & C3 -> 1000 Caisse
B4: 1010 | C4: Poste | D4: + | E4: - | G4: Postcheck-Konto | I4: 2010 | J4: Autres dettes | L4: 4200 | M4: Achats march. | O4: 3200 | P4: Ventes | S4: =B4 & " " & C4 -> 1010 Poste
B5: 1020 | C5: Banque | D5: + | E5: - | G5: Bank | I5: 2030 | J5: Acomptes clients | L5: 4201 | M5: Achats TVA réd. | O5: 3290 | P5: Déd. accordées | S5: 1020 Banque | BF5: =B22 -> 1301 | BJ5: =C22 -> Ch. cons. d'av.
B6: 1040 | C6: Effets à recevoir | D6: + | E6: - | G6: Wechsel | I6: 2100 | J6: Dettes bancaires | L6: 4202 | M6: Achats TVA 0% | O6: 3293 | P6: Commis. versées | S6: 1040 Effets à recevoir
B7: 1060 | C7: Titres | D7: + | E7: - | G7: Wertpapiere | I7: 2110 | J7: Autres banques | L7: 4270 | M7: Frais d'achats | O7: 3295 | P7: Pertes /créances | S7: 1060 Titres
B8: 1100 | C8: Créances clients | D8: + | E8: - | G8: Forderungen an Kunden | I8: 2150 | J8: Dettes fin. | L8: 4280 | M8: Variation stock | S8: 1100 Créances clients
B9: 1108 | C9: Cré. douteuses | D9: + | E9: - | G9: Dubiose Debitoren | I9: 2170 | J9: Dettes AVS | L9: 4290 | M9: Déd. obtenues | O9: =B86 -> 3400 | P9: Honoraires | S9: 1108 Cré. douteuses
B10: 1109 | C10: Prov. s/créances | D10: + | E10: - | G10: Rückstellungen für Forderungen | I10: 2175 | J10: Dettes LPP | L10: 4400 | M10: Sous-traitance | O10: 3600 | P10: Produits travaux | S10: 1109 Prov. s/créances
B11: 1110 | C11: Autres créances | D11: + | E11: - | G11: Sonstige Forderungen | I11: 2180 | J11: Dettes Caisse AF | L11: 4700 | M11: Charges directes | O11: 3620 | P11: Autres produits | S11: 1110 Autres créances
B12: 1140 | C12: Avances salaires | D12: + | E12: - | G12: Sonstige Debitoren | L12: 4900 | M12: Déd. obtenues | O12: 3660 | P12: Cotisations | S12: 1140 Avances salaires
B13: 1170 | C13: Impôt préalable I | D13: + | E13: - | G13: Vorherige Steuer I | I13: =B58 -> 2200 | J13: TVA due | O13: 3700 | P13: Pres. à soi-même | S13: 1170 Impôt préalable I
B14: 1171 | C14: Impôt préalable II | D14: + | E14: - | G14: Vorherige Steuer II | I14: 2201 | J14: TVA à décaisser | S14: 1171 Impôt préalable II
B15: 1172 | C15: Solde TVA | D15: + | E15: - | G15: Mehrwertsteuer-Saldo | I15: 2230 | J15: Dividendes | O15: =B91 -> 3900 | P15: Déd. accordées | S15: 1172 Solde TVA
B16: 1176 | C16: Créance AFC | D16: + | E16: - | G16: Vorsteuer | I16: 2235 | J16: Tantièmes | L16: =B106 -> 5000 | M16: Salaires prod. | O16: 3903 | P16: Commissions | S16: 1176 Créance AFC
B17: 1192 | C17: Acomptes four. | D17: + | E17: - | G17: Ofenanzahlungen . | I17: 2270 | J17: AVS | L17: 5200 | M17: Salaires | O17: 3905 | P17: Pertes /créances | S17: 1192 Acomptes four.
B18: 1193 | C18: Effets protestés | D18: + | E18: - | G18: Protestierte Wirkungen | I18: 2271 | J18: Caisse pension | L18: 5270 | M18: Charges sociales | O18: 3907 | P18: Frets et ports | S18: 1193 Effets protestés
B19: 1200 | C19: Stock | D19: + | E19: - | G19: Bestand Handelswaren | I19: 2272 | J19: Caisse comp. | L19: 5280 | M19: Ch. de personnel | S19: 1200 Stock
B20: 1210 | C20: Stock matière | D20: + | E20: - | G20: Materialbestand | S20: 1210 Stock matière
B21: 1300 | C21: Actif transitoire | D21: + | E21: - | G21: Rechningsabgrenzung Aktiva | I21: =B65 -> 2300 | J21: Passif transitoire | S21: 1300 Actif transitoire
B22: 1301 | C22: Ch. cons. d'av. | D22: + | E22: - | G22: Angefangene Arbeiten | I22: 2301 | J22: Charges à payer | L22: =B110 -> 6000 | M22: =C110 -> Loyer | O22: =B132 -> 7400 | P22: =C132 -> Prod. financiers | S22: 1301 Ch. cons. d'av.
B23: 1302 | C23: Prod. à recevoir | D23: + | E23: - | G23: Im Voraus bezahlter Aufwand | I23: 2302 | J23: Prod. cons. d'av. | L23: 6100 | M23: Entretien & répar. | O23: 7410 | P23: Ch. s/placements | S23: 1302 Prod. à recevoir
B24: 1420 | C24: Participations | D24: + | E24: - | G24: Beteiligungen | I24: 2440 | J24: Dettes hypoth. | L24: 6110 | M24: Réparations | O24: 7500 | P24: Prod. d'immeubles | S24: 1420 Participations
B25: 1440 | C25: Prêts accordés | D25: + | E25: - | G25: Gewährte Darlehen | I25: 2500 | J25: Prêt obtenu | L25: 6160 | M25: Leasing | O25: 7510 | P25: Ch. s/ immeubles | S25: 1440 Prêts accordés
B26: 1450 | C26: Cré. long terme | D26: + | E26: - | G26: Kredit langer Begriff | L26: 6200 | M26: Frais véhicules | O26: 7520 | P26: Chauffage | S26: 1450 Cré. long terme
B27: 1500 | C27: Machines | D27: + | E27: - | G27: Maschinen | I27: =B70 -> 2600 | J27: =C70 -> Provisions | L27: 6280 | M27: Frais expédition | O27: 8000 | P27: Produits exception. | S27: 1500 Machines
B28: 1509 | C28: Amo. s/machines | D28: + | E28: - | G28: Tilgungsfond/Maschnen | I28: 2800 | J28: Capital | L28: 6300 | M28: Assurances | O28: 8005 | P28: Subventions | S28: 1509 Amo. s/machines
B29: 1510 | C29: Mobilier | D29: + | E29: - | G29: Mobilar | I29: 2850 | J29: Privé | L29: 6302 | M29: Taxes | O29: 8010 | P29: Charges exception. | S29: 1510 Mobilier
B30: 1519 | C30: Amor. s/mobilier | D30: + | E30: - | G30: Kumul. Abschr. f. Mobilar | I30: 2900 | J30: Réserve générale | L30: 6400 | M30: Electricité | O30: 8015 | P30: Pertes s/créances | S30: 1519 Amor. s/mobilier
B31: 1520 | C31: Informatique | D31: + | E31: - | G31: Informatik | I31: 2910 | J31: Réserve actions | L31: 6500 | M31: Frais adminis. | O31: 8900 | P31: Impôt sur bénéfice | S31: 1520 Informatique
B32: 1529 | C32: Amor. s/info. | D32: + | E32: - | G32: Kumul. Abschr. f. Informatik | I32: 2920 | J32: Réserve réévaluation | L32: 6510 | M32: Téléphones | O32: 8910 | P32: Impôt sur capital | S32: 1529 Amor. s/info.
B33: 1530 | C33: Véhicules | D33: + | E33: - | G33: Fahrzeuge | I33: 2930 | J33: Réserve spéciale | L33: 6520 | M33: Abonnementgs | O33: 9000 | P33: Résultat | S33: 1530 Véhicules
B34: 1539 | C34: Amor. s/véhicules | D34: + | E34: - | G34: Kumul. Abschr. f. Fahrzeuge | I34: 2940 | J34: Prime émission | L34: 6570 | M34: Frais informatique | O34: 9010 | P34: Résultat global | S34: 1539 Amor. s/véhicules
B35: 1540 | C35: Outillage | D35: + | E35: - | G35: Ausrüstung | I35: 2990 | J35: Bénéfice reporté | L35: 6600 | M35: Publicité | O35: 9020 | P35: Pertes & Profits | S35: 1540 Outillage
B36: 1549 | C36: Amor. s/outillage | D36: + | E36: - | G36: Kumul. Abschr. f.Ausrüstung | I36: 2992 | J36: Bénéfice bilan | L36: 6700 | M36: ACE | O36: 9100 | P36: Bilan d'ouverture | S36: 1549 Amor. s/outillage
B37: 1560 | C37: Autres actifs | D37: + | E37: - | G37: Andere Aktiva | L37: 6710 | M37: Diff. de caisse | O37: 9110 | P37: Bilan de clôture | S37: 1560 Autres actifs
B38: 1569 | C38: Amor. s/autres | D38: + | E38: - | G38: Kumul. Abschr. | L38: 6800 | M38: Intérêts-charges | S38: 1569 Amor. s/autres
B39: 1600 | C39: Immeuble | D39: + | E39: - | G39: Immobilie | L39: 6840 | M39: Frais bancaires | S39: 1600 Immeuble
B40: 1609 | C40: Amo. s/immeuble | D40: + | E40: - | G40: Kumul. Abschr. f. Immobilie | L40: 6850 | M40: Intérêts-produits | S40: 1609 Amo. s/immeuble
B41: 1700 | C41: Brevets | D41: + | E41: - | G41: Patente | L41: 6860 | M41: Frais d'émission | S41: 1700 Brevets
B42: 1709 | C42: Amor. s/brevet | D42: + | E42: - | G42: Kumul. Abschr. f. Patente | L42: 6900 | M42: Amortissements | S42: 1709 Amor. s/brevet
B43: 1770 | C43: Goodwill | D43: + | E43: - | G43: Goodwill | O43: Les modifications sont à apporter dans | S43: 1770 Goodwill
B44: 1779 | C44: Amor. s/goodwill | D44: + | E44: - | G44: Kumul. Abschr. f. Goodwill | O44: la colonne de gauche exclusivement ! | S44: 1779 Amor. s/goodwill
B45: 1800 | C45: Frais de fondation | D45: + | E45: - | G45: Gründungskosten | S45: 1800 Frais de fondation
B46: 1850 | C46: Actionnaires | D46: + | E46: - | G46: Aktionäre | S46: 1850 Actionnaires
B47: 1860 | C47: Participants | D47: + | E47: - | G47: Teilnehmer | S47: 1860 Participants
D48: + | E48: -
B49: 2000 | C49: Fournisseurs | D49: - | E49: + | G49: Lieferanten | S49: 2000 Fournisseurs
B50: 2010 | C50: Autres dettes | D50: - | E50: + | G50: Andere Schulden | S50: 2010 Autres dettes
B51: 2030 | C51: Acomptes clients | D51: - | E51: + | G51: Kundenanzahlungen | I51: FALSE | S51: 2030 Acomptes clients
B52: 2100 | C52: Dettes bancaires | D52: - | E52: + | G52: Bankverbindlichkeiten | S52: 2100 Dettes bancaires
B53: 2110 | C53: Autres banques | D53: - | E53: + | G53: Andere Banken | S53: 2110 Autres banques
B54: 2150 | C54: Dettes fin. | D54: - | E54: + | G54: Schulden fein. | S54: 2150 Dettes fin.
B55: 2170 | C55: Dettes AVS | D55: - | E55: + | G55: Avs-Schulden | S55: 2170 Dettes AVS
B56: 2175 | C56: Dettes LPP | D56: - | E56: + | G56: Lpp-Schulden | S56: 2175 Dettes LPP
B57: 2180 | C57: Dettes Caisse AF | D57: - | E57: + | G57: Schulden Kiste AF | S57: 2180 Dettes Caisse AF
B58: 2200 | C58: TVA due | D58: - | E58: + | G58: Geschuldete Mehrwertsteuer | S58: 2200 TVA due
B59: 2201 | C59: TVA à décaisser | D59: - | E59: + | G59: Auszupackende Mehrwertsteuer | S59: 2201 TVA à décaisser
B60: 2230 | C60: Dividendes | D60: - | E60: + | G60: Dividenden | S60: 2230 Dividendes
B61: 2235 | C61: Tantièmes | D61: - | E61: + | G61: Tantiemen | S61: 2235 Tantièmes
B62: 2270 | C62: AVS | D62: - | E62: + | G62: AVS | S62: 2270 AVS
B63: 2271 | C63: Caisse pension | D63: - | E63: + | G63: Pensionskiste | S63: 2271 Caisse pension
B64: 2272 | C64: Caisse comp. | D64: - | E64: + | G64: Kiste comp. | S64: 2272 Caisse comp.
B65: 2300 | C65: Passif transitoire | D65: - | E65: + | G65: Rechningsabgrenzung Passiva | S65: 2300 Passif transitoire
B66: 2301 | C66: Charges à payer | D66: - | E66: + | G66: Zu zahlende Lasten | S66: 2301 Charges à payer
B67: 2302 | C67: Prod. cons. d'av. | D67: - | E67: + | G67: Prod. Idioten. von av. | S67: 2302 Prod. cons. d'av.
B68: 2440 | C68: Dettes hypoth. | D68: - | E68: + | G68: Hypothekenschuld | S68: 2440 Dettes hypoth.
B69: 2500 | C69: Prêt obtenu | D69: - | E69: + | G69: Erhaltenes Darlehen | S69: 2500 Prêt obtenu
B70: 2600 | C70: Provisions | D70: - | E70: + | G70: Vorräte | S70: 2600 Provisions
B71: 2800 | C71: Capital | D71: - | E71: + | G71: Kapital | S71: 2800 Capital
B72: 2850 | C72: Privé | D72: - | E72: + | G72: Privat | S72: =B72 & " " & C72 -> 2850 Privé
B73: 2900 | C73: Réserve générale | D73: - | E73: + | G73: Allgemeiner Vorbehalt | S73: 2900 Réserve générale
B74: 2910 | C74: Réserve actions | D74: - | E74: + | G74: Aktionsreserve | S74: 2910 Réserve actions
B75: 2920 | C75: Réserve réévaluation | D75: - | E75: + | G75: Reserve Schätzung | S75: 2920 Réserve réévaluation
B76: 2930 | C76: Réserve spéciale | D76: - | E76: + | G76: Spezielle Reserve | S76: 2930 Réserve spéciale
B77: 2940 | C77: Prime émission | D77: - | E77: + | G77: Emissionsprämie | S77: 2940 Prime émission
B78: 2990 | C78: Bénéfice reporté | D78: - | E78: + | G78: Gewinnvortrag | S78: 2990 Bénéfice reporté
B79: 2992 | C79: Bénéfice bilan | D79: - | E79: + | G79: Bilanzgewinn | S79: 2992 Bénéfice bilan
B81: 3000 | C81: Production | D81: - | E81: + | G81: Produktion | S81: 3000 Production
B82: 3200 | C82: Ventes | D82: - | E82: + | G82: Warenverkauf | S82: 3200 Ventes
B83: 3290 | C83: Déd. accordées | D83: - | E83: + | G83: Gewährte Nachlässe | S83: 3290 Déd. accordées
B84: 3293 | C84: Commis. versées | D84: - | E84: + | G84: Büroangestelltes. bewandert | S84: 3293 Commis. versées
B85: 3295 | C85: Pertes /créances | D85: - | E85: + | G85: /cr-Verluste éances | S85: 3295 Pertes /créances
B86: 3400 | C86: Honoraires | D86: - | E86: + | G86: Honorare | S86: 3400 Honoraires
B87: 3600 | C87: Produits travaux | D87: - | E87: + | G87: Arbeitsprodukte | S87: 3600 Produits travaux
B88: 3620 | C88: Autres produits | D88: - | E88: + | G88: Andere Produkte | S88: 3620 Autres produits
B89: 3660 | C89: Cotisations | D89: - | E89: + | G89: Beiträge | S89: 3660 Cotisations
B90: 3700 | C90: Pres. à soi-même | D90: - | E90: + | G90: Nahe. an sich selbst | S90: 3700 Pres. à soi-même
B91: 3900 | C91: Déd. accordées | D91: - | E91: + | G91: Déd. gewährt | S91: 3900 Déd. accordées
B92: 3903 | C92: Commissions | D92: - | E92: + | G92: Kommissionen | S92: 3903 Commissions
B93: 3905 | C93: Pertes /créances | D93: - | E93: + | G93: /cr-Verluste éances | S93: 3905 Pertes /créances
B94: 3907 | C94: Frets et ports | D94: - | E94: + | G94: Frachten und Häfen | S94: 3907 Frets et ports
B96: 4000 | C96: Achats matière | D96: + | E96: - | G96: Materialkäufe | S96: 4000 Achats matière
B97: 4200 | C97: Achats march. | D97: + | E97: - | G97: Wareneinkauf | S97: 4200 Achats march.
B98: 4201 | C98: Achats TVA réd. | D98: + | E98: - | G98: Mehrwertsteuer-Käufe | S98: 4201 Achats TVA réd.
B99: 4202 | C99: Achats TVA 0% | D99: + | E99: - | G99: Käufe Mehrwertsteuer 0% | S99: 4202 Achats TVA 0%
B100: 4270 | C100: Frais d'achats | D100: + | E100: - | G100: Kaufskosten | S100: 4270 Frais d'achats
B101: 4280 | C101: Variation stock | D101: + | E101: - | G101: Bestandsveränderung | S101: 4280 Variation stock
B102: 4290 | C102: Déd. obtenues | D102: + | E102: - | G102: Déd. erhalten | S102: 4290 Déd. obtenues
B103: 4400 | C103: Sous-traitance | D103: + | E103: - | G103: Vergabe von Unteraufträgen | S103: 4400 Sous-traitance
B104: 4700 | C104: Charges directes | D104: + | E104: - | G104: Direkte Lasten | S104: 4700 Charges directes
B105: 4900 | C105: Déd. obtenues | D105: + | E105: - | G105: Gewährte erhalten | S105: 4900 Déd. obtenues
B106: 5000 | C106: Salaires prod. | D106: + | E106: - | G106: Gehälter prod. | S106: 5000 Salaires prod.
B107: 5200 | C107: Salaires | D107: + | E107: - | G107: Gehälter | S107: 5200 Salaires
B108: 5270 | C108: Charges sociales | D108: + | E108: - | G108: Soziallasten | S108: 5270 Charges sociales
B109: 5280 | C109: Ch. de personnel | D109: + | E109: - | G109: Aufwendungen f. Personal | S109: 5280 Ch. de personnel
B110: 6000 | C110: Loyer | D110: + | E110: - | G110: Mietzins | S110: 6000 Loyer
B111: 6100 | C111: Entretien & répar. | D111: + | E111: - | G111: Wartung & Reparatur | S111: 6100 Entretien & répar.
B112: 6110 | C112: Réparations | D112: + | E112: - | G112: Reparaturen | S112: 6110 Réparations
B113: 6160 | C113: Leasing | D113: + | E113: - | G113: Leasing | S113: 6160 Leasing
B114: 6200 | C114: Frais véhicules | D114: + | E114: - | G114: Fahrzeugkosten | S114: 6200 Frais véhicules
B115: 6280 | C115: Frais expédition | D115: + | E115: - | G115: Versandkosten | S115: 6280 Frais expédition
B116: 6300 | C116: Assurances | D116: + | E116: - | G116: Versicherungen | S116: 6300 Assurances
B117: 6302 | C117: Taxes | D117: + | E117: - | G117: Steuern | S117: 6302 Taxes
B118: 6400 | C118: Electricité | D118: + | E118: - | G118: Elektrizität | S118: 6400 Electricité
B119: 6500 | C119: Frais adminis. | D119: + | E119: - | G119: Kosten adminis. | S119: 6500 Frais adminis.
B120: 6510 | C120: Téléphones | D120: + | E120: - | G120: Telephone | S120: 6510 Téléphones
B121: 6520 | C121: Abonnementgs | D121: + | E121: - | G121: Abonnementgs | S121: 6520 Abonnementgs
B122: 6570 | C122: Frais informatique | D122: + | E122: - | G122: Kosten Informatik | S122: 6570 Frais informatique
B123: 6600 | C123: Publicité | D123: + | E123: - | G123: Werbung | S123: 6600 Publicité
B124: 6700 | C124: ACE | D124: + | E124: - | G124: Sonstige Betriebsaufwendungen | S124: 6700 ACE
B125: 6710 | C125: Diff. de caisse | D125: + | E125: - | G125: Kassenmanko | S125: 6710 Diff. de caisse
B126: 6800 | C126: Intérêts-charges | D126: + | E126: - | G126: Interessen-Last | S126: 6800 Intérêts-charges
B127: 6840 | C127: Frais bancaires | D127: + | E127: - | G127: Bankspesen | S127: 6840 Frais bancaires
B128: 6850 | C128: Intérêts-produits | D128: - | E128: + | G128: Interessen-Produkt | S128: 6850 Intérêts-produits
B129: 6860 | C129: Frais d'émission | D129: + | E129: - | G129: Emissionskosten | S129: 6860 Frais d'émission
B130: 6900 | C130: Amortissements | D130: + | E130: - | G130: Abschreibungen | S130: 6900 Amortissements
B132: 7400 | C132: Prod. financiers | D132: - | E132: + | G132: Finanzerträge | S132: 7400 Prod. financiers
B133: 7410 | C133: Ch. s/placements | D133: + | E133: - | G133: Aufwendungen / Finanzerträge | S133: 7410 Ch. s/placements
B134: 7500 | C134: Prod. d'immeubles | D134: - | E134: + | G134: Immobilienaufw. & -ertr. | S134: 7500 Prod. d'immeubles
B135: 7510 | C135: Ch. s/ immeubles | D135: + | E135: - | G135: Aufwendungen / Gebäude | S135: 7510 Ch. s/ immeubles
B136: 7520 | C136: Chauffage | D136: + | E136: - | G136: Heizung | S136: =B136 & " " & C136 -> 7520 Chauffage
B137: 8000 | C137: Produits exception. | D137: - | E137: + | G137: Ausnahmeprodukte. | S137: 8000 Produits exception.
B138: 8005 | C138: Subventions | D138: - | E138: + | G138: Subventionen | S138: 8005 Subventions
B139: 8010 | C139: Charges exception. | D139: + | E139: - | G139: Ausnahmelasten. | S139: 8010 Charges exception.
B140: 8015 | C140: Pertes s/créances | D140: + | E140: - | G140: Verluste f. Forderungen | S140: 8015 Pertes s/créances
B141: 8900 | C141: Impôt sur bénéfice | D141: + | E141: - | G141: Steuer auf Gewinn | S141: 8900 Impôt sur bénéfice
B142: 8910 | C142: Impôt sur capital | D142: + | E142: - | G142: Vermögensteuer | S142: 8910 Impôt sur capital
B143: 9000 | C143: Résultat | G143: Betriebsergebnis | S143: 9000 Résultat
B144: 9010 | C144: Résultat global | G144: Gesamtergebnis | S144: =B145 & " " & C145 -> 9020 Pertes & Profits
B145: 9020 | C145: Pertes & Profits | G145: Verluste & Profite | S145: =B146 & " " & C146 -> 9100 Bilan d'ouverture
B146: 9100 | C146: Bilan d'ouverture | G146: Eröffnungsbilanz | S146: 9110 Bilan de clôture
B147: 9110 | C147: Bilan de clôture | G147: Schlußbilanz
G165: Aktiva | S165: =B165 & " " & C165 -> 
G166: Passiva

Sheet Journal
D1: Ne pas remplir ce tableau. Il montre l'écriture sélectionnée par le bouton actif du Grand-Livre (No en B70)
B2: Ecriture | C2: Int. | D2: no | F2: Débit | H2: Crédit | I2: Libellé | J2: Sommes | K2: Sommes
B3: ='Grand-livre'!B70 -> 0 | C3: =100*B3+VLOOKUP(B3,Question,2) ->  | D3: =IF($B$3*100+1>$C$3,0,($B$3*100+1)) ->  | E3: =IF(VLOOKUP($D3,Journal,2,FALSE)="","",VLOOKUP($D3,Journal,2,FALSE)) ->  | F3: =IF(VLOOKUP($D3,Journal,3,FALSE)="","",VLOOKUP($D3,Journal,3,FALSE)) ->  | G3: =IF(VLOOKUP($D3,Journal,4,FALSE)="","",VLOOKUP($D3,Journal,4,FALSE)) ->  | H3: =IF(VLOOKUP($D3,Journal,5,FALSE)="","",VLOOKUP($D3,Journal,5,FALSE)) ->  | I3: =IF(VLOOKUP($D3,Journal,6,FALSE)="","",VLOOKUP($D3,Journal,6,FALSE)) ->  | J3: =IF(VLOOKUP($D3,Journal,7,FALSE)="","",VLOOKUP($D3,Journal,7,FALSE)) ->  | K3: =IF(VLOOKUP($D3,Journal,8,FALSE)="","",VLOOKUP($D3,Journal,8,FALSE)) -> 
D4: =IF($B$3*100+2>$C$3,0,($B$3*100+2)) -> 
D5: =IF($B$3*100+3>$C$3,0,($B$3*100+3)) -> 
D6: =IF($B$3*100+4>$C$3,0,($B$3*100+4)) -> 
D7: =IF($B$3*100+5>$C$3,0,($B$3*100+5)) -> 
D8: =IF($B$3*100+6>$C$3,0,($B$3*100+6)) -> 
B10: Journal pour les opérations du Grand-Livre (Chaque ligne doit avoir un numéro à 3 chiffres, ex. 101,102, 201,301…) | M10: Ce tableau est la réplique de la feuille "Libellés". Ne pas remplir !
B11: Ecriture | C11: no | D11: Int. | F11: Débit | H11: Crédit | I11: Libellé | J11: Sommes | K11: Sommes | M11: 1 | N11: =Libellés!C13 -> Achats de marchandises à crédit CHF 93'000.-.
B12: 1 | C12: 1 | D12: =B12*100+C12 -> 101 | F12: Achats | H12: Fournisseurs | I12: Achats à crédit | J12: 93,000.00 | K12: =J12 -> 93,000.00 | M12: 2 | N12: =Libellés!C14 -> Ventes de marchandises à crédit CHF 21'000.-.
B13: 2 | C13: 1 | D13: =B13*100+C13 -> 201 | F13: Créances clients | H13: Ventes | I13: Ventes à crédit | J13: 21,000.00 | K13: 21,000.00 | M13: 3 | N13: =Libellés!C15 -> Ventes de marchandises au comptant CHF 100'000.-.
B14: 3 | C14: 1 | D14: =B14*100+C14 -> 301 | F14: Caisse | H14: Ventes | I14: Ventes au comptant | J14: 100,000.00 | K14: =J14 -> 100,000.00 | M14: 4 | N14: =Libellés!C16 -> Paiements aux fournisseurs par la banque CHF 89'000.-
B15: 4 | C15: 1 | D15: 401 | F15: Fournisseurs | H15: Banque | I15: Paiements aux fournisseurs | J15: 89,000.00 | K15: =J15 -> 89,000.00 | M15: 5 | N15: =Libellés!C17 -> Paiements des clients en espèces CHF 19'000.-.
B16: 5 | C16: 1 | D16: 501 | F16: Caisse | H16: Créances clients | I16: Paiements des clients | J16: 19,000.00 | K16: 19,000.00 | M16: 6 | N16: =Libellés!C18 -> Escomptes et rabais accordés CHF 1'000.-.
B17: 6 | C17: 1 | D17: 601 | F17: Déduc. Accordées | H17: Créances clients | I17: Escomptes et rabais accordés | J17: 1,000.00 | K17: 1,000.00 | M17: 7 | N17: =Libellés!C19 -> Escomptes et rabais obtenus CHF 2'000.-.
B18: 7 | C18: 1 | D18: 701 | F18: Fournisseurs | H18: Déduc. Obtenues | I18: Escomptes et rabais obtenues | J18: 2,000.00 | K18: 2,000.00 | M18: 8 | N18: =Libellés!C20 -> Versements d'espèces à la banque CHF 101'000.-.
B19: 8 | C19: 1 | D19: 801 | F19: Banque | H19: Caisse | I19: Versement à la banque | J19: 101,000.00 | K19: 101,000.00 | M19: 9 | N19: =Libellés!C21 -> Règlement, par la banque, du loyer du magasin CHF 3'000.-.
B20: 9 | C20: 1 | D20: 901 | F20: ACE | H20: Banque | I20: Loyer | J20: 3,000.00 | K20: 3,000.00 | M20: 10 | N20: =Libellés!C22 -> Règlement, en espèces, de frais généraux divers CHF 17'000.-.
B21: 10 | C21: 1 | D21: 1001 | F21: ACE | H21: Caisse | I21: FG divers | J21: 17,000.00 | K21: 17,000.00 | M21: 11 | N21: =Libellés!C23 -> Inventaire final des marchandises CHF 31'000.-.
B22: 11 | C22: 1 | D22: 1101 | F22: Stock | H22: Variation du stock | I22: Augmentation du stock | J22: 1,000.00 | K22: 1,000.00 | M22: 12 | N22: =Libellés!C24 -> Virement du résultat dans le capital
B23: 12 | C23: 1 | D23: 1201 | F23: Résultat | H23: Capital | I23: Autofinancement | J23: 10,000.00 | K23: 10,000.00 | M23: 13 | N23: =Libellés!C25 -> 0
D24: 0 | K24: =J24 -> 0.00 | M24: 14 | N24: =Libellés!C26 -> 0
D25: 0 | K25: 0.00 | M25: 15 | N25: =Libellés!C27 -> 0
D26: 0 | K26: 0.00 | M26: 16 | N26: =Libellés!C28 -> 0
D27: 0 | K27: 0.00 | M27: 17 | N27: =Libellés!C29 -> 0
D28: 0 | K28: 0.00 | M28: 18 | N28: =Libellés!C30 -> 0
D29: 0 | K29: 0.00 | M29: 19 | N29: =Libellés!C31 -> 0
D30: 0 | K30: 0.00 | M30: 20 | N30: =Libellés!C32 -> 0
D31: 0 | K31: 0.00 | M31: 21 | N31: =Libellés!C33 -> 0
D32: 0 | K32: 0.00 | M32: 22 | N32: =Libellés!C34 -> 0
D33: 0 | K33: 0.00 | M33: 23 | N33: =Libellés!C35 -> 0
D34: 0 | K34: 0.00 | M34: 24 | N34: =Libellés!C36 -> Virement du résultat
D35: 0 | K35: 0.00 | M35: 25 | N35: =Libellés!C37 -> Autre virement
D36: 0 | K36: 0.00
D37: 0 | K37: 0.00
D38: 0 | K38: 0.00
D39: 0 | K39: 0.00
D40: 0 | K40: 0.00
D41: 0 | K41: 0.00
D42: 0 | K42: 0.00
D43: 0 | K43: 0.00
D44: 0 | K44: 0.00
D45: 0 | K45: 0.00
D46: 0 | K46: 0.00
D47: 0 | K47: 0.00
D48: 0 | K48: 0.00
D49: 0 | K49: 0.00
D50: 0 | K50: 0.00
D51: 0 | K51: 0.00
D52: 0 | K52: 0.00
D53: 0 | K53: 0.00
D54: 0 | K54: 0.00
D55: 0 | K55: 0.00
D56: 0 | K56: 0.00
D57: 0 | K57: 0.00
D58: 0 | K58: 0.00
D59: 0 | K59: 0.00
D60: 0 | K60: 0.00
D61: 0 | K61: 0.00
D62: 0 | K62: 0.00
D63: 0 | K63: 0.00
D64: 0 | K64: 0.00
D65: 0 | K65: 0.00
D66: 0 | K66: 0.00
D67: 0 | K67: 0.00
D68: 0 | K68: 0.00
D69: 0 | K69: 0.00
D70: 0 | K70: =J70 -> 0.00
B102: FALSE
D112: 1

Sheet Donnée élèves
B2: Exercice 4, chapitre 14, Michel Calderara, Comptabilité générale
B4: Bilan au 1er janvier :
C5: Caisse | E5: 2,000.-
C6: Stock | E6: 30,000.-
C7: Clients | E7: 6,000.-
C8: Fournisseurs | E8: 8,000.-
C9: Banque créancière | E9: 10,000.-
C10: Capital | E10: 20,000.-
B12: Ouvrir les comptes ci-dessus, ainsi que les comptes suivants :
C13: Ventes
C14: Déductions accordées
C15: Achats
C16: Déductions obtenues
C17: Variation du stock
C18: Frais généraux (ACE)
C19: Résultat d'exploitation à 2 degrés
B21: Opérations :
B22: 1 | C22: Achats de marchandises à crédit CHF 93'000.-.
B23: 2 | C23: Ventes de marchandises à crédit CHF 21'000.-.
B24: 3 | C24: Ventes de marchandises au comptant CHF 100'000.-.
B25: 4 | C25: Paiements aux fournisseurs par la banque CHF 89'000.-
B26: 5 | C26: Paiements des clients en espèces CHF 19'000.-.
B27: 6 | C27: Escomptes et rabais accordés CHF 1'000.-.
B28: 7 | C28: Escomptes et rabais obtenus CHF 2'000.-.
B29: 8 | C29: Versements d'espèces à la banque CHF 101'000.-.
B30: 9 | C30: Règlement, par la banque, du loyer du magasin CHF 3'000.-.
B31: 10 | C31: Règlement, en espèces, de frais généraux divers CHF 17'000.-.
B33: Inventaire final des marchandises CHF 31'000.-.
B35: Faire la clôture des comptes et le bilan final après affectation du résultat à Capital.

Sheet Renseignements
H2: Entrer dans ces carrés le numéro du compte selon le plan comptable de la feuille 3
M3: (Ctrl + i inserre le no du formulaire Plan comptable dans la cellule active)
B5: 1000 | D5: 1000 Caisse | H5: 1010 | J5: 1010 Poste | N5: 2000 | P5: 2000 Fournisseurs | V5: Blablabla
D6: 1) | E6: 100.00 | J6: san | K6: 2,000.00 | L6: 1) | M6: 100.00 | R6: san | S6: 300.00 | V6: 3) | W6: 20.00 | AE6: table
F7: 3) | G7: 20.00 | L7: 2) | M7: 120.00 | P7: 2) | Q7: 120.00 | V7: 4) | W7: 30.00 | AE7: =B13 -> 41 | AF7: =C13 -> 80.00 | AG7: =D5 -> 1000 Caisse | AH7: =LEFT(AG7,4) -> 1000
L8: 4) | M8: 30.00 | AE8: =H13 -> 43 | AF8: =I13 -> 1,750.00 | AG8: =J5 -> 1010 Poste | AH8: 1010
AE9: =N13 -> 42 | AF9: =O13 -> 180.00 | AG9: =P5 -> 2000 Fournisseurs | AH9: 2000
AE10: =T13 -> 1 | AF10: =U13 -> 50.00 | AG10: =V5 -> Blablabla | AH10: Blab
AE11: =B24 -> 0 | AF11: =C24 -> 0.00 | AG11: =D16 -> 0 | AH11: 0
AE12: =H24 -> 0 | AF12: =I24 -> 0.00 | AG12: =J16 -> 0 | AH12: 0
B13: 41 | C13: =E13+G13 -> 80.00 | D13: =IF(E13=0,"",B14) ->  | E13: =IF(E6+G6=0,0,IF(SUM(E6:E12)>SUM(G6:G12),0,SUM(G6:G12)-SUM(E6:E12))) -> 0.00 | F13: =IF(G13=0,"",B14) -> v/b. | G13: =IF(E6+G6=0,0,IF(SUM(G6:G12)>SUM(E6:E12),0,SUM(E6:E12)-SUM(G6:G12))) -> 80.00 | H13: 43 | I13: =K13+M13 -> 1,750.00 | J13: =IF(K13=0,"",H14) ->  | K13: =IF(K6+M6=0,0,IF(SUM(K6:K12)>SUM(M6:M12),0,SUM(M6:M12)-SUM(K6:K12))) -> 0.00 | L13: =IF(M13=0,"",H14) -> v/b. | M13: =IF(K6+M6=0,0,IF(SUM(M6:M12)>SUM(K6:K12),0,SUM(K6:K12)-SUM(M6:M12))) -> 1,750.00 | N13: 42 | O13: =Q13+S13 -> 180.00 | P13: =IF(Q13=0,"",N14) -> v/b. | Q13: =IF(Q6+S6=0,0,IF(SUM(Q6:Q12)>SUM(S6:S12),0,SUM(S6:S12)-SUM(Q6:Q12))) -> 180.00 | R13: =IF(S13=0,"",N14) ->  | S13: =IF(Q6+S6=0,0,IF(SUM(S6:S12)>SUM(Q6:Q12),0,SUM(Q6:Q12)-SUM(S6:S12))) -> 0.00 | T13: 1 | U13: =W13+Y13 -> 50.00 | V13: =IF(W11=0,"",T12) ->  | W13: =IF(W6+Y6=0,0,IF(SUM(W6:W12)>SUM(Y6:Y12),0,SUM(Y6:Y12)-SUM(W6:W12))) -> 0.00 | X13: =IF(Y13=0,"",T14) -> v/e | Y13: =IF(W6+Y6=0,0,IF(SUM(Y6:Y12)>SUM(W6:W12),0,SUM(W6:W12)-SUM(Y6:Y12))) -> 50.00 | AE13: =N24 -> 0 | AF13: =O24 -> 0.00 | AG13: =P16 -> 0 | AH13: 0
B14: =IF(B13="","spb",IF(B13>20,"v/b.","v/e")) -> v/b. | E14: =IF(E6+G6=0,"",SUM(E6:E13)) -> 100.00 | G14: =IF(E6+G6=0,"",SUM(G6:G13)) -> 100.00 | H14: =IF(H13="","spb",IF(H13>20,"v/b.","v/e")) -> v/b. | K14: =IF(K6+M6=0,"",SUM(K6:K13)) -> 2,000.00 | M14: =IF(K6+M6=0,"",SUM(M6:M13)) -> 2,000.00 | N14: =IF(N13="","spb",IF(N13>20,"v/b.","v/e")) -> v/b. | Q14: =IF(Q6+S6=0,"",SUM(Q6:Q13)) -> 300.00 | S14: =IF(Q6+S6=0,"",SUM(S6:S13)) -> 300.00 | T14: =IF(T13="","spb",IF(T13>20,"v/b.","v/e")) -> v/e | W14: =IF(W6+Y6=0,"",SUM(W6:W13)) -> 50.00 | Y14: =IF(W6+Y6=0,"",SUM(Y6:Y13)) -> 50.00 | AE14: =T24 -> 0 | AF14: =U24 -> 0.00 | AG14: =V16 -> 0 | AH14: 0
AE15: =B35 -> 0 | AF15: =C35 -> 0.00 | AG15: =D27 -> 0 | AH15: 0
AE16: =H35 -> 0 | AF16: =I35 -> 0.00 | AG16: =J27 -> 0 | AH16: 0
AE17: =N35 -> 0 | AF17: =O35 -> 0.00 | AG17: =P27 -> 0 | AH17: 0
AE18: =T35 -> 0 | AF18: =U35 -> 0.00 | AG18: =V27 -> 0 | AH18: 0
AE19: =B46 -> 0 | AF19: =C46 -> 0.00 | AG19: =D38 -> 0 | AH19: 0
AE20: =H46 -> 0 | AF20: =I46 -> 0.00 | AG20: =J38 -> 0 | AH20: 0
AE21: =N46 -> 0 | AF21: =O46 -> 0.00 | AG21: =P38 -> 0 | AH21: 0
AE22: =T46 -> 0 | AF22: =U46 -> 0.00 | AG22: =V38 -> 0 | AH22: 0
AE23: =B58 -> 68 | AF23: =C58 -> 50.00 | AG23: =D50 -> 9000 Résultat | AH23: 9000
AE24: 1 | AF24: 0
AE25: 2 | AF25: 0
AE26: 3 | AF26: 0
AE27: 4 | AF27: 0
AE28: 5 | AF28: 0
AE29: 6 | AF29: 0
AE30: 7 | AF30: 0
AE31: 8 | AF31: 0
AE32: 9 | AF32: 0
AE33: 10 | AF33: 0
AE34: 11 | AF34: 0
AE35: 12 | AF35: 0
AE36: 13 | AF36: 0
AE37: 14 | AF37: 0
AE38: 15 | AF38: 0
AE39: 16 | AF39: 0
AE40: 17 | AF40: 0
AE41: 18 | AF41: 0
AE42: 19 | AF42: 0
AE43: 20 | AF43: 0
AE44: 41 | AF44: 0
AE45: 42 | AF45: 0
AE46: 43 | AF46: 0
AE47: 44 | AF47: 0
AE48: 45 | AF48: 0
AE49: 46 | AF49: 0
D50: 9000 Résultat | N50: B I L A N final | AE50: 47 | AF50: 0
B51: 1 | D51: =IF(E51=0,"",VLOOKUP(B51,table,4,FALSE)) -> Blab | E51: =VLOOKUP(B51,table,2,FALSE) -> 50.00 | F51: =IF(G51=0,"",VLOOKUP(H51,table,4,FALSE)) ->  | G51: =VLOOKUP(H51,table,2,FALSE) -> 0.00 | H51: 2 | N51: Actif | T51: Passif | AE51: 48 | AF51: 0
B52: 3 | E52: 0.00 | G52: 0.00 | H52: 4 | M52: 41 | N52: =IF(S52=0,"",VLOOKUP(M52,table,3,FALSE)) -> 1000 Caisse | S52: =VLOOKUP(M52,table,2,FALSE) -> 80.00 | T52: =IF(Y52=0,"",VLOOKUP(Z52,table,3,FALSE)) -> 2000 Fournisseurs | Y52: =VLOOKUP(Z52,table,2,FALSE) -> 180.00 | Z52: 42 | AE52: 49 | AF52: 0
B53: 5 | E53: 0.00 | G53: 0.00 | H53: 6 | M53: 43 | N53: =IF(S53=0,"",VLOOKUP(M53,table,3,FALSE)) -> 1010 Poste | S53: 1,750.00 | T53: =IF(Y53=0,"",VLOOKUP(Z53,table,3,FALSE)) ->  | Y53: =VLOOKUP(Z53,table,2,FALSE) -> 0.00 | Z53: 44 | AE53: 50 | AF53: 0
B54: 7 | E54: 0.00 | G54: 0.00 | H54: 8 | M54: 45 | N54: =IF(S54=0,"",VLOOKUP(M54,table,3,FALSE)) ->  | S54: 0.00 | T54: =IF(Y54=0,"",VLOOKUP(Z54,table,3,FALSE)) ->  | Y54: =VLOOKUP(Z54,table,2,FALSE) -> 0.00 | Z54: 46 | AE54: 51 | AF54: 0
B55: 9 | E55: 0.00 | G55: 0.00 | H55: 10 | M55: 47 | S55: 0.00 | Y55: 0.00 | Z55: 48 | AE55: 52 | AF55: 0
B56: 11 | E56: 0.00 | G56: 0.00 | H56: 12 | M56: 49 | S56: 0.00 | Y56: 0.00 | Z56: 50 | AE56: 53 | AF56: 0
B57: 13 | E57: 0.00 | H57: 14 | M57: 51 | S57: 0.00 | Y57: 0.00 | Z57: 52 | AE57: 54 | AF57: 0
B58: 68 | C58: =E58+G58 -> 50.00 | D58: =IF(E58=0,"","spb") ->  | E58: =IF(E51+G51=0,0,IF(SUM(E51:E57)>SUM(G51:G57),0,SUM(G51:G57)-SUM(E51:E57))) -> 0.00 | F58: =IF(G58=0,"","spb") -> spb | G58: =IF(E51+G51=0,0,IF(SUM(G51:G57)>SUM(E51:E57),0,SUM(E51:E57)-SUM(G51:G57))) -> 50.00 | M58: 53 | S58: =VLOOKUP(M58,table,2,FALSE) -> 0.00 | Y58: 0.00 | Z58: 54 | AE58: 55 | AF58: 0
E59: =IF(E51+G51=0,"",SUM(E51:E58)) -> 50.00 | G59: =IF(E51+G51=0,"",SUM(G51:G58)) -> 50.00 | M59: 55 | S59: =VLOOKUP(M59,table,2,FALSE) -> 0.00 | Y59: 0.00 | Z59: 56 | AE59: 56 | AF59: 0
M60: 57 | S60: =VLOOKUP(M60,table,2,FALSE) -> 0.00 | T60: =IF(Y60=0,"",VLOOKUP(Z60,table,3,FALSE)) -> 9000 Résultat | Y60: =VLOOKUP(Z60,table,2,FALSE) -> 50.00 | Z60: 68 | AE60: 57 | AF60: 0
M61: 67 | R61: =IF(S61=0,"","spb") ->  | S61: =IF(S52+V52=0,0,IF(SUM(S52:S60)>SUM(V52:V60),0,SUM(V52:V60)-SUM(S52:S60))) -> 0.00 | X61: =IF(Y61=0,"","spb") ->  | Y61: =IF(W52+Y52=0,0,IF(SUM(Y52:Y60)>SUM(W52:W60),0,SUM(W52:W60)-SUM(Y52:Y60))) -> 0.00 | AE61: 38 | AF61: 0
S62: =IF(S52+V52=0,"",SUM(S52:S61)) -> 1,830.00 | Y62: =IF(W52+Y52=0,"",SUM(Y52:Y61)) -> 230.00
N67: PS: Les boutons macros (affichage avec "Voir les boutons") situés en haut de l'écran, sont déjà affectés aux
P68: macros ecr_1, ecr_2, ecr_3,....ecr_20; alternativement del_1, del_2, del_3,...del_20.
P69: Il suffit donc de créer une macro ecr_X pour chaque écriture et une macro del_X
P70: pour effacer les écritures (X = no de l'écriture).
AB72: © Yvan Péguiron - mars 2003- déc. 2006
W79: Montrer ou cacher les boutons macro du haut de la page.
K82: Afficher ou masquer les petits carrés bleus ou gris.
Y83: Si des titres de comptes ont été rentrés à la main, la programmation
Y84: de ces titres en fonction du petit numéro disparaît.
K85: Petits ou grands comptes : | Y85: Ces boutons remettrent les formules initiales .
K86: RowH est la hauteur des cellules. (1 = 17 pixels, 2 = 18, 3 = 19, etc) | Y86: Sans no est utile pourdes libellés clairs dans le Résultat
Y88: Taille de la police pour les montants (Les libellés sont bloqués à 9).
K89: Choix de la grandeur du grand-livre :
K90: Il est recommandé de cliquer sur le bouton gris d'abord, | Y90: Adaptez le grand-livre à votre écran ou à votre beamer
K91: (5 rangs de 8 lignes) puis de choisir les options. | Y91: avec cette commande de zoom.
Y92: Zoom min. et max. pour les ronds jaunes.
K93: Afficher le plan comptable dans une deuxième fenête.
K94: Ctrl + p affiche un menu déroulant | Y94: Oter la protection (idem Outils - Protection)
K95: Le compte de résultat peut s'afficher avec 8 ou 15 lignes.
K96: (Bilan; 7 ou 14 lignes) | Y96: Tracer ou non les lignes dans les comptes.
K97: Une présentation à deux niveaux est possible : | Y97: Afficher les en-têtes de lignes et colonnes
K98: L'indice 1 ou 2 permet de régler la hauteur de la clôture intermédiaire | Y98: Si vous souhaitez placer les symboles dans les titres,
E99: Ne pas oublier les racourcis clavier | Y99: il faut les copier et les coller à l'endroit voulu, manuellement !
Y100: Largeur standard des colonnes.
K102: Effacer le contenu de tous les comptes. Les | Y102: Attention, ce bouton n'efface pas seulement les écritures mais
K103: titres et la programmation des soldes demeurent. | Y103: vide les carrés bleus et gris. Ecrivez "oui" si vous êtes sûr !
K106: Le premier compte peut être agrandi et passer de 8 à 19 lignes.
V107: Formulaire permettant d'afficher à l'écran les colonnes de comptes choisies.
V108: (Utile pour corriger des GL de plus de 4 colonnes de comptes)
B160: Dernières révisions :
B161: 2014-04-02 | E161: Formulaires pour virement du résultat
B168: Problème sur Mac avec la nouvelle version Excel 2011
B170: Pour une raison inconnue, les noms de macros composés de 3 lettres et 1 chiffre ne sont plus admis. C’est évidemment une tuile pour toutes les macros « ecr » et « del » qui sont la clé de l’application !
B172: Au chargement, un message nous avise qu’Excel a glissé des « _ » où bon lui semble, mais que ces changements doivent être faits manuellement dans les macros !
B174: Solution pour des nouveaux exercices :
B176: 1) Utiliser la version GL_auto_vide_Mac2011.xls ou Gl_auto_vide_PC2011.xls.
B177: 2) Lorsque vous créez les macros « ecr » et « del », les appeler maintenant « ecr_ » et « del_ ». Par exemple, pour l’écriture 1, créer les macros « ecr_1 » et « del_1 ».
B180: Solution pour rendre compatible des anciens exercices :
B182: 1) Aller dans l’éditeur de macro (par exemple : Outils – Macro – Macros… - Modifier)
B183: 2) Edition – Remplacer
B193: Choisir « Projet en cours » puis Remplacer tout
B195: Il faut remplacer :
B196: a) ecr par ecr_
B197: b) del par del_
B198: c) del_tout par deltout
B200: Revenir dans le classeur Excel et sauver la nouvelle version sous un autre nom.
A203: Virements de clôture programmés grâce à 2 formulaires
A204: accecibles depuis le formulaire général
Q206: Programmation du bouton R
A210: 210 | D210: D | E210: E | F210: F | G210: G | H210: H | P210: P | Q210: Q | R210: R | S210: S
A211: 211
A212: 212 | D212: 2850 Privé | P212: 2800 Capital
A213: 213 | E213: 5,000.00
A214: 214
A215: 215 | D215: =IF(E215>0,"PN","") ->  | F215: =IF(G215>0,"BN","") ->  | G215: ='Grand-livre'!$E$89 -> 0.00 | Q215: dim. Cap | S215: aug. Cap
A216: 216
A217: 217
A218: 218
A219: 219
A220: 220
A221: 221
A222: 222 | D222: v/bi | E222: 4,500.00 | F222: =IF(G222=0,"",B223) ->  | P222: =IF(Q222=0,"",N223) ->  | Q222: =IF(Q213+S213=0,0,IF(SUM(Q213:Q221)>SUM(S213:S221),0,SUM(S213:S221)-SUM(Q213:Q221))) -> 0.00 | R222: =IF(S222=0,"",N223) ->  | S222: =IF(Q213+S213=0,0,IF(SUM(S213:S221)>SUM(Q213:Q221),0,SUM(Q213:Q221)-SUM(S213:S221))) -> 0.00
A223: 223 | E223: =IF(E213+G213=0,"",SUM(E213:E222)) -> 9,500.00 | G223: =IF(E213+G213=0,"",SUM(G213:G222)) -> 0.00 | Q223: =IF(Q213+S213=0,"",SUM(Q213:Q222)) ->  | S223: =IF(Q213+S213=0,"",SUM(S213:S222)) -> 
A224: 224
A226: Utilisation des macros :
A228: Bouton R (macro 24) pour viré le
D229: résultat dans un compte.
D230: (par exemple, résultat à Privé)
A233: Bouton C (macro 25) pour virer le solde
B234: d'un compte dans un autre compte.
B235: (par exemple, Privé à Capital)
S237: Programmation du bouton C
